Workbook

Sheet Read_Me
A1: 2026 | B1: V1.0 | C1: FS Accumulator Structural Equivalency Spreadsheet Guide
A3: The ASES template has been created to simplify the process of proving structural equivalency of the Tractive System Accumulator (TSAC).
A6: Please enter your values in the yellow cells and paste all the images in the specific tabs which shows your entered values.
A9: All dimensions and units must follow the European SI System!
A11: The final decision about all designs will be made at technical inspection. Approval of an ASES does not guarantee passing Tech. Inspection nor a fully rules compliant accumulator!
A14: As downloaded, the spreadsheet assumes a baseline steel/aluminium TSAC design. The majority of the cells in the spreadsheet are locked, you can only edit the cells shaded yellow.
A16: Cells shaded grey are dependant on the data entered in yellow cells, the formulae in these grey cells have been left visible so you can see how the results are calculated.
A18: The vast majority of the tabs can be accessed using the hyperlinks on the cover sheet. If you enable macros when opening the document "Ctrl+e" will return you to the cover sheet.
A20: The ASES has been extensively tested, but if you think you have found a mistake in the document or have any questions on how to use the template please submit a question in the usual manner.
A22: Please read the guidance notes located at the end of the workbook.
A24: If you find a new problem with the ASES template or require a clarification 72 hours or less before the ASES submission deadline please include your own proof of equivalency in the "Additional Info" tab and additionally submit a rules question.
B28: Teams are not permitted to rename the name of the TAB or to delete any TAB.
A31: Revisions:
A32: V1.0 | B32: First release for 2026 rules
B33: - TAB EV5.5.10-12 Cell Fixation: Updated name and sheet due to new rules.
B34: - TAB EV5.5.14-18 Openings&Separation: Allowed N/A for some cases and removed
B35: redundant check.
B36: - TAB Datasheets Other Matl: Added cells for properties at 60 °C
B37: - TAB Materials Overview: Fixed formula error
B38: - TAB Materials Overview: Added cells for properties at 60 °C for Other Materials
B39: - TAB Accumulator Pics: Removed name before "Material" for correction.

Sheet Version History
A1: If you have to resubmit your ASES then please update the table below, indicating what changes you have made from the previous submission.
A4: Submission Version | B4: Revision Comments

Sheet Rules Clarifications
A1: Details of any rules clarifications must be referenced and appended in this tab. Rules clarifications not listed here will be ignored during the review!
A3: Clarification ID | B3: Details of Clarification Question and Answer

Sheet Cover Sheet
A1: =CONCATENATE(Read_Me!A1," FS ASES ",Read_Me!B1," - COVER SHEET") -> 2026 FS ASES V1.0 - COVER SHEET
A3: This form must be completed and submitted by all teams no later than the date specified in the action deadlines in the Event Handbook. The technical committee will review all submissions which deviate from the FS rules and reply with a decision about the requested deviation. All requests will have a confirmation of receipt sent to the team. The ASES must be submitted electronically in Microsoft Excel Format (*.xlsx). Please submit as described in the action deadlines for each event.
A8: Proof requirement explanation
A9: Mandatory | C9: The proof is mandatory to show compliance to the rules/equivalency in any case, regardless of the accumulator concept.
A10: Optional | C10: The proof may be required, depending on the accumulator concept, to show equivalency. If so, it must be included.
A12: In the event that the FS technical committee requests additional information or calculations, teams must submit the requested information within the deadline specified by the respective competition.
A15: University Name | K15: Car No.(s) & Event(s)
A16: Team Contact | K16: Email Address
A17: Faculty Advisor | K17: Email Address
B19: Is proof of equivalency for your design required for any of the rules?
B20: =IF(OR('Accumulator Pics'!E12="Other",'Accumulator Pics'!E36="Other",'Accumulator Pics'!E60="Other",'Accumulator Pics'!E84="Other"),"Yes, TSAC deviates from baseline requirements","No. TSAC does not deviate from baseline requirements") -> No. TSAC does not deviate from baseline requirements
B22: Tab | H22: Rule No. | M22: Compliance shown? | P22: CAD proof required? | R22: Datasheet proof required? | T22: Manual calculation required?
M24: X | N24: Y | O24: Z
B25: Accumulator Pics | H25: EV5.5.4/5 | M25: No | P25: Mandatory | R25: Optional | T25: Optional
B26: Alt. Matls Summary | H26: EV5.5.3-7
B27: Alt. Matl - 3pt Bending | H27: EV5.5.3-7 | M27: No | P27: Optional | R27: Optional | T27: Optional
B28: Alt. Matl - Shear | H28: EV5.5.3-7 | M28: No | P28: Optional | R28: Optional | T28: Optional
B29: Materials Overview | H29: EV5.5.3/4
B30: Datasheets Fiber | H30: EV5.5.3/4 | M30: No | P30: Optional | R30: Optional | T30: Optional
B31: Datasheets Other Matl | H31: EV5.5.3/4 | M31: No | P31: Optional | R31: Optional | T31: Optional
B32: Datasheets Glue | H32: EV5.5.3/4 | M32: No | P32: Optional | R32: Optional | T32: Optional
B33: EV5.5.9 Segment | H33: EV5.5.6/8 | M33: No | N33: No | O33: No | P33: Mandatory | R33: Optional | T33: Mandatory
B34: EV5.5.9 TSAC | H34: EV5.5.6/8 | M34: No | N34: No | O34: No | P34: Mandatory | R34: Optional | T34: Mandatory
B35: EV5.5.9 TSAC attachment | H35: EV5.5.6/8 | M35: No | N35: No | O35: No | P35: Mandatory | R35: Optional | T35: Mandatory
B36: EV5.5.10-12 Cell Fixation | H36: EV5.5.10-12, EV4.5.12 | M36: No | N36: No | O36: No | P36: Mandatory | R36: Optional | T36: Mandatory
B37: EV5.5.13 Fasteners | H37: EV5.5.13, T10 | M37: No | N37: No | O37: No | P37: Mandatory | R37: Optional | T37: Optional
B38: EV5.5.14-17 Openings&Separation | H38: EV5.5.7/14-18, EV5.4.6 | M38: No | P38: Mandatory | R38: Mandatory | T38: Optional
B41: COMPLETE APPROPRIATE TABS TO PROVE EQUIVALENCY
B42: Please see | D42: "Accumulator Structural Equivalency Spreadsheet Guide" | M42: in the Read_Me tab of the ASES Workbook.
B44: NOTE: THIS FORM AND THE APPROVED COPY OF THE SUBMISSION MUST BE PRESENTED AT TECHNICAL INSPECTION AT EVERY FORMULA STUDENT EVENT ENTERED

Sheet Accumulator Pics
A1: =CONCATENATE(Read_Me!A1," FS ASES ",Read_Me!B1," - ACCUMULATOR PICS") -> 2026 FS ASES V1.0 - ACCUMULATOR PICS
R2: This chart below is for laminated structures of the Accumulator!
A3: University Name | D3: =IF('Cover Sheet'!D15:J15>0,'Cover Sheet'!D15:J15,"") ->  | I3: Car No.(s) & Event(s) | M3: =IF('Cover Sheet'!O15>0,'Cover Sheet'!O15,"") ->  | R3: Structure | S3: Overall Thickness [mm] | T3: Thickness outer skin [mm] | U3: Outer skin layup | V3: Core material | W3: Core thickness [mm] | X3: inner skin layup | Y3: Thickness inner skin [mm] | Z3: Proof of T3.4.3
A5: Please attach pictures of your accumulator in the table below for review during the ASES process. All walls/panels/lay-ups must be colour coded to show different walls. Three view drawings and isometric views of the structure (CAD, FEA models, etc) are acceptable.
R8: Floor | S8: =T8+W8+Y8 -> 2 | T8: ='EV5.5.5 Alt. Matl - 3pt Bending'!C57 -> 1 | W8: ='EV5.5.5 Alt. Matl - 3pt Bending'!C55 -> 0 | Y8: ='EV5.5.5 Alt. Matl - 3pt Bending'!C56 -> 1
L9: BACK to COVER SHEET | R9: Ext. Walls | S9: =T9+W9+Y9 -> 2 | T9: ='EV5.5.5 Alt. Matl - 3pt Bending'!V57 -> 1 | W9: ='EV5.5.5 Alt. Matl - 3pt Bending'!V55 -> 0 | Y9: ='EV5.5.5 Alt. Matl - 3pt Bending'!V56 -> 1
A10: Accumulator Floor | R10: Int. Walls | S10: 2 | T10: ='EV5.5.5 Alt. Matl - 3pt Bending'!AO57 -> 1 | W10: ='EV5.5.5 Alt. Matl - 3pt Bending'!AO55 -> 0 | Y10: ='EV5.5.5 Alt. Matl - 3pt Bending'!AO56 -> 1
R11: Cover | S11: 2 | T11: ='EV5.5.5 Alt. Matl - 3pt Bending'!BH57 -> 1 | W11: ='EV5.5.5 Alt. Matl - 3pt Bending'!BH55 -> 0 | Y11: ='EV5.5.5 Alt. Matl - 3pt Bending'!BH56 -> 1
A12: Material | E12: Steel
A13: Floor Thickness [mm] | E13: =IF(E12="Other",S8,S14) -> 4 | R13: This chart below is for metalic structures of the Accumulator!
A14: Width [mm] | E14: 300 | R14: Floor | S14: 4
A15: Fail / Pass | E15: =IF(E12="Other",'EV5.5.5 Alt. Matls Summary'!D25,IF(E12="Steel",IF(E13<1.25,"FAIL","PASS"),IF(E12="Aluminium",IF(E13<3.2,"FAIL","PASS")))) -> PASS | R15: Ext. Walls | S15: 4
R16: Int. Walls | S16: 4
B17: Paste Image of width of the accumulator floor. | R17: Cover
B18: Paste Image of Floor Thickness.
Q19: Accumulator Position in the Chassis
V21: Image provided
Q22: Isometric View of Accumulator in chassis | V22: No
Q23: Sideview of Acc. in chassis | V23: No
R25: Paste Image of Accumulator in chassis
R27: Paste image of sideview of accumulator in chassis, with the height clearly marked
R28: of the accumulator protection
A34: External Wall
A36: Material | E36: Steel
A37: Wall Thickness [mm] | E37: =IF(E36="Other",S9,S15) -> 4
A38: Height [mm]
A39: Fail / Pass | E39: =IF(E36="Other",'EV5.5.5 Alt. Matls Summary'!F25,IF(E36="Steel",IF(E37<0.9,"FAIL","PASS"),IF(E36="Aluminium",IF(E37<2.3,"FAIL","PASS")))) -> PASS
B41: Paste Image of height of the external wall.
B42: Paste Image of wall thickness. | Q42: Additional Pictures
R45: Any pictures (e.g. full view, sections) that might be in interest of the reviewer/scrutineer.
A58: =IF(E38=E62,"Internal Wall","Internal Wall - Must have the same height as external wall!") -> Internal Wall
A60: Material | E60: Steel
A61: Wall Thickness [mm] | E61: =IF(E60="Other",S10,S16) -> 4
A62: Height [mm]
A63: Fail / Pass | E63: =IF(E60="Other",'EV5.5.5 Alt. Matls Summary'!H25,IF(E60="Steel",IF(E61<0.9,"FAIL","PASS"),IF(E60="Aluminium",IF(E61<2.3,"FAIL","PASS")))) -> PASS
B65: Paste Image of height of the internal wall.
B66: Paste Image of wall thickness.
A82: Cover
A84: Material | E84: Steel
A85: Cover Thickness / mm | E85: =IF(E84="Other",S11,S17) -> 0
A86: Width [mm]
A87: Fail / Pass | E87: =IF(E84="Other",'EV5.5.5 Alt. Matls Summary'!H25,IF(E84="Steel",IF(E85<0.9,"FAIL","PASS"),IF(E84="Aluminium",IF(E85<2.3,"FAIL","PASS")))) -> FAIL
B89: Paste Image of width of the internal wall.
B90: Paste Image of cover thickness.

Sheet EV5.5.1&2 EV4.4 ACPS TSPS sidex (hidden)
B1: Accumulator Protection
C2: Enter construction type | F2: Tubing only | L2: BACK to COVER SHEET
B4: Material Property | C4: Baseline | E4: Your Tube type 1 | F4: Your Tube type 2 | G4: Your Tube type 3 | H4: Your Tubes Total | I4: Your Composite | J4: Your Total | M4: Outer | N4: Inner
B5: Material type | C5: Steel | E5: Steel | F5: Steel | G5: Steel | I5: Composite 1 | L5: b (m) | M5: =I22/1000 -> 0.32 | N5: =M5 -> 0.32
B6: Tubing Type | C6: Round | E6: Round | F6: Round | G6: Round | I6: NA | L6: h (m) | M6: =I21/1000 -> 0.001 | N6: =I20/1000 -> 0.001
B7: Material name /grade | C7: =HLOOKUP(C5,#REF!,2,FALSE) ->  | E7: =HLOOKUP(E5,#REF!,2,FALSE) ->  | F7: =HLOOKUP(F5,#REF!,2,FALSE) ->  | G7: =HLOOKUP(G5,#REF!,2,FALSE) ->  | I7: =HLOOKUP(I5,#REF!,2,FALSE) -> 
B8: Youngs Modulus, E | C8: =INDEX(Innertable,MATCH($B8,#REF!,0),MATCH(C$7,#REF!,0)) ->  | E8: =INDEX(Innertable,MATCH($B8,#REF!,0),MATCH(E$7,#REF!,0)) ->  | F8: =INDEX(Innertable,MATCH($B8,#REF!,0),MATCH(F$7,#REF!,0)) ->  | G8: =INDEX(Innertable,MATCH($B8,#REF!,0),MATCH(G$7,#REF!,0)) ->  | I8: =INDEX(Innertable,MATCH($B8,#REF!,0),MATCH(I$7,#REF!,0)) ->  | L8: A1 (m^2) | M8: =M5*M6 -> 0.00032 | N8: I1 (m^4) | O8: =(M5*M6^3)/12 -> 2.666666667e-11
B9: Yield strength, Pa | C9: =INDEX(Innertable,MATCH($B9,#REF!,0),MATCH(C$7,#REF!,0)) ->  | E9: =INDEX(Innertable,MATCH($B9,#REF!,0),MATCH(E$7,#REF!,0)) ->  | F9: =INDEX(Innertable,MATCH($B9,#REF!,0),MATCH(F$7,#REF!,0)) ->  | G9: =INDEX(Innertable,MATCH($B9,#REF!,0),MATCH(G$7,#REF!,0)) ->  | I9: =INDEX(Innertable,MATCH($B9,#REF!,0),MATCH(I$7,#REF!,0)) ->  | L9: A2 (m^2) | M9: =N5*N6 -> 0.00032 | N9: I2 (m^4) | O9: =(N5*N6^3)/12 -> 2.666666667e-11
B10: UTS, Pa | C10: =INDEX(Innertable,MATCH($B10,#REF!,0),MATCH(C$7,#REF!,0)) ->  | E10: =INDEX(Innertable,MATCH($B10,#REF!,0),MATCH(E$7,#REF!,0)) ->  | F10: =INDEX(Innertable,MATCH($B10,#REF!,0),MATCH(F$7,#REF!,0)) ->  | G10: =INDEX(Innertable,MATCH($B10,#REF!,0),MATCH(G$7,#REF!,0)) ->  | I10: =INDEX(Innertable,MATCH($B10,#REF!,0),MATCH(I$7,#REF!,0)) ->  | L10: y1 (m) | M10: =M6/2 -> 0.0005 | N10: Ic1 (m^4) | O10: =O8+(M8*($M$12-M10)^2) -> 2.890666667e-08
B11: Yield strength, welded, Pa | C11: =INDEX(Innertable,MATCH($B11,#REF!,0),MATCH(C$7,#REF!,0)) ->  | E11: =INDEX(Innertable,MATCH($B11,#REF!,0),MATCH(E$7,#REF!,0)) ->  | F11: =INDEX(Innertable,MATCH($B11,#REF!,0),MATCH(F$7,#REF!,0)) ->  | G11: =INDEX(Innertable,MATCH($B11,#REF!,0),MATCH(G$7,#REF!,0)) ->  | I11: =INDEX(Innertable,MATCH($B11,#REF!,0),MATCH(I$7,#REF!,0)) ->  | L11: y2 (m) | M11: =(I18-0.5*I20)*0.001 -> 0.0195 | N11: Ic2 (m^4) | O11: =O9+(M9*($M$12-M11)^2) -> 2.890666667e-08
B12: UTS welded, Pa | C12: =INDEX(Innertable,MATCH($B12,#REF!,0),MATCH(C$7,#REF!,0)) ->  | E12: =INDEX(Innertable,MATCH($B12,#REF!,0),MATCH(E$7,#REF!,0)) ->  | F12: =INDEX(Innertable,MATCH($B12,#REF!,0),MATCH(F$7,#REF!,0)) ->  | G12: =INDEX(Innertable,MATCH($B12,#REF!,0),MATCH(G$7,#REF!,0)) ->  | I12: =INDEX(Innertable,MATCH($B12,#REF!,0),MATCH(I$7,#REF!,0)) ->  | L12: Centroid (m) | M12: =(M8*M10+M9*M11)/(M8+M9) -> 0.01 | N12: Ic12 (m^4) | O12: =SUM(O10:O11) -> 5.781333333e-08
B14: Number of tubes | C14: 3 | E14: 3 | F14: 0 | G14: 0
B15: Tube OD, mm | C15: 25.4 | E15: 25.4 | F15: 25.4 | G15: 25.4
B16: Wall, mm | C16: 1.6 | E16: 1.6 | F16: 1.6 | G16: 1.6
F17: Baseline design? | G17: =IF(AND(K27>=100,F2="tubing only",NOT(OR(E18="NO",F18="NO",G18="NO"))),"YES","NO") -> 
B18: Thickness of panel, mm | E18: =IF(E14=0,"N/A",IF(AND(E5=$C$5,E15>=25.4,E16>=1.6),"YES","NO")) -> YES | F18: =IF(F14=0,"N/A",IF(AND(F5=$C$5,F15>=25.4,F16>=1.6),"YES","NO")) -> N/A | G18: =IF(G14=0,"N/A",IF(AND(G5=$C$5,G15>=25.4,G16>=1.6),"YES","NO")) -> N/A | I18: =I19+I20+I21 -> 20
B19: Thickness of core, mm | I19: 18
B20: Thickness of inner skin, mm | I20: 1
B21: Thickness of outer skin, mm | I21: 1
B22: Panel height,mm | I22: 320
B24: OD, m | C24: =C15/1000 -> 0.0254 | E24: =IF($F$2="composite only","No tubes",IF(E14=0,"No tubes",E15/1000)) -> 0.0254 | F24: =IF($F$2="composite only","No tubes",IF(F14=0,"No tubes",F15/1000)) -> No tubes | G24: =IF($F$2="composite only","No tubes",IF(G14=0,"No tubes",G15/1000)) -> No tubes
B25: Wall, m | C25: =C16/1000 -> 0.0016 | E25: =IF(E24="no tubes","",IF(E14=0,"",E16/1000)) -> 0.0016 | F25: =IF(F24="no tubes","",IF(F14=0,"",F16/1000)) ->  | G25: =IF(G24="no tubes","",IF(G14=0,"",G16/1000)) -> 
B26: I, m^4 | C26: =IF(C6="Round",((C24)^4-((C24-2*C25))^4)*3.142/64,((C24)^4-((C24-2*C25))^4)/12) -> 8.50991848e-09 | E26: =IF(E24="no tubes","",IF(E14=0,"",IF(E6="Round",(((E24)^4-((E24-2*E25))^4)*3.142/64),IF(E6="Square",(((E24)^4-((E24-2*E25))^4)/12),"")))) -> 8.50991848e-09 | F26: =IF(F24="no tubes","",IF(F14=0,"",IF(F6="Round",(((F24)^4-((F24-2*F25))^4)*3.142/64),IF(F6="Square",(((F24)^4-((F24-2*F25))^4)/12),"")))) ->  | G26: =IF(G24="no tubes","",IF(G14=0,"",IF(G6="Round",(((G24)^4-((G24-2*G25))^4)*3.142/64),IF(G6="Square",(((G24)^4-((G24-2*G25))^4)/12),"")))) ->  | H26: =IF(SUM(E26:G26)>0,SUM(E26:G26),"") -> 8.50991848e-09 | I26: =IF($F$2="Tubing only","Tubing Only",O12) -> Tubing Only | J26: =IF($F$2="Tubing only",H26,IF($F$2="Composite only",I26,IF($F$2="Tubes + Composite",H26+I26,"No Type Selected"))) -> 8.50991848e-09
B27: EI | C27: =C8*C26*C14 ->  | E27: =IF(E24="no tubes","",IF(E14=0,"",E8*E26*E14)) ->  | F27: =IF(F24="no tubes","",IF(F14=0,"",F8*F26*F14)) ->  | G27: =IF(G24="no tubes","",IF(G14=0,"",G8*G26*G14)) ->  | H27: =IF(SUM(E27:G27)>0,SUM(E27:G27),"") ->  | I27: =IF(I26="Tubing Only","",I26*I8) ->  | K27: =IF(AND(NOT($F$2="tubes + composite"),OR(AND($G$14>0,G27<(C27/3)),AND($F$14>0,F27<(C27/3)),AND($E$14>0,E27<(C27/3)))),0,100*J27/C27) ->  | L27: =IF((99.9>K27)*AND(K27>33.3),"For Composites Only, Additional Proof Required","") -> 
B28: Area, mm^2 | C28: =IF(C24="no tubes","",IF(C14=0,"",IF(C6="Round",C14*((C15^2-(C15-2*C16)^2)*PI()/4),IF(C6="Square",C14*(C15^2-(C15-2*C16)^2),"")))) -> 358.8955447 | E28: =IF(E24="no tubes","",IF(E14=0,"",IF(E6="Round",E14*((E15^2-(E15-2*E16)^2)*PI()/4),IF(E6="Square",E14*(E15^2-(E15-2*E16)^2),"")))) -> 358.8955447 | F28: =IF(F24="no tubes","",IF(F14=0,"",IF(F6="Round",F14*((F15^2-(F15-2*F16)^2)*PI()/4),IF(F6="Square",F14*(F15^2-(F15-2*F16)^2),"")))) ->  | G28: =IF(G24="no tubes","",IF(G14=0,"",IF(G6="Round",G14*((G15^2-(G15-2*G16)^2)*PI()/4),IF(G6="Square",G14*(G15^2-(G15-2*G16)^2),"")))) ->  | H28: 358.8955447 | I28: =IF(I26="Tubing Only","",(I18-I19)*I22) ->  | J28: 358.8955447 | K28: =IF(AND($F$2="tubing only",AND(E5="steel",F5="steel",G5="steel")),100*J28/C28,"NA") -> 100 | L28: =IF(AND(95<K28,K28<100),"For tubes only, provided your actual tube measures >= your nominal OD and wall this is OK","") -> 
B29: Yield tensile strength, N | C29: =C$28*C9/1000000 ->  | E29: =IF(E24="no tubes","",IF(E14=0,"",E$28*E9/1000000)) ->  | F29: =IF(F24="no tubes","",IF(F14=0,"",F$28*F9/1000000)) ->  | G29: =IF(G24="no tubes","",IF(G14=0,"",G$28*G9/1000000)) ->  | I29: =IF(I26="Tubing Only","",I28*I9/1000000) ->  | K29: =IF(AND($F$2="tubing only",OR($E29<0.95*($E$14/$C$14)*$C29,$F29<0.95*($F$14/$C$14)*$C29,$G29<0.95*($G$14/$C$14)*$C29)),0,100*J29/C29) ->  | L29: =IF(AND(95<K29,K29<100),"For tubes only, provided your actual tube measures >= your nominal OD and wall this is OK","") -> 
B30: UTS, N | C30: =C$28*C10/1000000 ->  | E30: =IF(E24="no tubes","",IF(E14=0,"",E$28*E10/1000000)) ->  | F30: =IF(F24="no tubes","",IF(F14=0,"",F$28*F10/1000000)) ->  | G30: =IF(G24="no tubes","",IF(G14=0,"",G$28*G10/1000000)) ->  | I30: =IF(I26="Tubing Only","",I28*I10/1000000) ->  | K30: =IF(AND($F$2="tubing only",OR($E30<0.95*($E$14/$C$14)*$C30,$F30<0.95*($F$14/$C$14)*$C30,$G30<0.95*($G$14/$C$14)*$C30)),0,100*J30/C30) ->  | L30: =IF(AND(95<K30,K30<100),"For tubes only, provided your actual tube measures >= your nominal OD and wall this is OK","") -> 
B31: Yield tensile strength, N as welded | C31: =C$28*C11/1000000 ->  | E31: =IF(E24="no tubes","",IF(E14=0,"",E$28*E11/1000000)) ->  | F31: =IF(F24="no tubes","",IF(F14=0,"",F$28*F11/1000000)) ->  | G31: =IF(G24="no tubes","",IF(G14=0,"",G$28*G11/1000000)) ->  | I31: =IF(I26="Tubing Only","",I28*I9/1000000) ->  | K31: =IF(AND($F$2="tubing only",OR($E31<0.95*($E$14/$C$14)*$C31,$F31<0.95*($F$14/$C$14)*$C31,$G31<0.95*($G$14/$C$14)*$C31)),0,100*J31/C31) ->  | L31: =IF(AND(95<K31,K31<100),"For tubes only, provided your actual tube measures >= your nominal OD and wall this is OK","") -> 
B32: UTS, N as welded | C32: =IF(C14=0,"",C$28*C12/1000000) ->  | E32: =IF(E24="no tubes","",IF(E14=0,"",E$28*E12/1000000)) ->  | F32: =IF(F24="no tubes","",IF(F14=0,"",F$28*F12/1000000)) ->  | G32: =IF(G24="no tubes","",IF(G14=0,"",G$28*G12/1000000)) ->  | I32: =IF(I26="tubing only","",I28*I10/1000000) ->  | K32: =IF(AND($F$2="tubing only",OR($E32<0.95*($E$14/$C$14)*$C32,$F32<0.95*($F$14/$C$14)*$C32,$G32<0.95*($G$14/$C$14)*$C32)),0,100*J32/C32) ->  | L32: =IF(AND(95<K32,K32<100),"For tubes only, provided your actual tube measures >= your nominal OD and wall this is OK","") -> 
B33: Max load at mid span to give UTS for 1m long tube, N | C33: =C14*4*C10*C26/(0.5*C24*1) ->  | E33: =IF(E24="no tubes","",IF(E14=0,"",E14*4*E10*E26/(0.5*E24*1))) ->  | F33: =IF(F24="no tubes","",IF(F14=0,"",F14*4*F10*F26/(0.5*F24*1))) ->  | G33: =IF(G24="no tubes","",IF(G14=0,"",G14*4*G10*G26/(0.5*G24*1))) ->  | I33: =IF(I26="tubing only","",4*I10*(I26*2/(I18/1000))/1) ->  | K33: =IF(AND($F$2="tubing only",OR($E33<0.95*($E$14/$C$14)*$C33,$F33<0.95*($F$14/$C$14)*$C33,$G33<0.95*($G$14/$C$14)*$C33)),0,100*J33/C33) ->  | L33: =IF((99.9>K33)*AND(K33>33.3),"For Composites Only, Additional Proof Required","") -> 
B34: Max deflection at baseline load for 1m long tube, m | C34: =IF(C14=0,"",C33*1^3/(48*C27)) ->  | E34: =IF(E24="no tubes","",IF(E14=0,"",($C$33*1^3/(48*E27)))) ->  | F34: =IF(F24="no tubes","",IF(F14=0,"",($C$33*1^3/(48*F27)))) ->  | G34: =IF(G24="no tubes","",IF(G14=0,"",($C$33*1^3/(48*G27)))) ->  | H34: =IF(F2="composite only","",$C$33*1^3/(48*H27)) ->  | I34: =IF(NOT($F$2="tubing only"),$C$33*1^3/(48*I27),"") ->  | J34: =IF($F$2="Tubing only",H34,IF($F$2="Composite only",I34,IF($F$2="Tubes + Composite",$C$33*1^3/(48*J27),"No Type Selected"))) ->  | K34: =IF(AND($F$2="tubing only",J34>1.05*C34),101,100*J34/C34) ->  | L34: =IF((100.1<K34)*AND(K34<300.1),"For Composites Only, Additional Proof Required","") -> 
B35: Energy absorbed up to UTS, J | C35: =0.5*C33*(C33*1^3/(48*C27)) ->  | E35: =IF(E24="no tubes","",0.5*E33*(E33*1^3/(48*E27))) ->  | F35: =IF(F24="no tubes","",0.5*F33*(F33*1^3/(48*F27))) ->  | G35: =IF(G24="no tubes","",0.5*G33*(G33*1^3/(48*G27))) ->  | I35: =IF(I26="tubing only","",0.5*I33*(I33*1^3/(48*I27))) ->  | J35: =IF($F$2="Tubing only",H35,IF($F$2="Composite only",I35,IF($F$2="Tubes + Composite",H35+I35,"No Type Selected"))) ->  | K35: =IF(AND($F$2="tubing only",OR($E$36<$C$36,$F$36<$C$36,$G$36<$C$36)),0,100*J35/C35) ->  | L35: =IF((99.9>K35)*AND(K35>33.3),"For Composites Only, Additional Proof Required","") -> 
C36: =0.99*C27/C14 ->  | E36: =IF(AND($F$2="tubing only",E14>0),E27/E14,9E+99) ->  | F36: =IF(AND($F$2="tubing only",F14>0),F27/F14,9E+99) -> 9e+99 | G36: =IF(AND($F$2="tubing only",G14>0),G27/G14,9E+99) -> 9e+99
B37: CAD Screenshots / Images proving all panel dimensions and any additional proof must be appended below
B39: Alternative designs as per side/rear and floor division similarly to TAB T3.15 T3.5 SIS are allowed. Copy the 'T3.15 T3.5 SIS' TAB and rename accordingly.
B40: Include and clearly mark your design in the space below:

Sheet EV5.5.1&2 EV4.4 ACPS TSPS rearx (hidden)
B1: Accumulator Protection
C2: Enter construction type | F2: Tubing only | L2: BACK to COVER SHEET
B4: Material Property | C4: Baseline | E4: Your Tube type 1 | F4: Your Tube type 2 | G4: Your Tube type 3 | H4: Your Tubes Total | I4: Your Composite | J4: Your Total | M4: Outer | N4: Inner
B5: Material type | C5: Steel | E5: Steel | F5: Steel | G5: Steel | I5: Composite 1 | L5: b (m) | M5: =I22/1000 -> 0.32 | N5: =M5 -> 0.32
B6: Tubing Type | C6: Round | E6: Round | F6: Round | G6: Round | I6: NA | L6: h (m) | M6: =I21/1000 -> 0.001 | N6: =I20/1000 -> 0.001
B7: Material name /grade | C7: =HLOOKUP(C5,#REF!,2,FALSE) ->  | E7: =HLOOKUP(E5,#REF!,2,FALSE) ->  | F7: =HLOOKUP(F5,#REF!,2,FALSE) ->  | G7: =HLOOKUP(G5,#REF!,2,FALSE) ->  | I7: =HLOOKUP(I5,#REF!,2,FALSE) -> 
B8: Youngs Modulus, E | C8: =INDEX(Innertable,MATCH($B8,#REF!,0),MATCH(C$7,#REF!,0)) ->  | E8: =INDEX(Innertable,MATCH($B8,#REF!,0),MATCH(E$7,#REF!,0)) ->  | F8: =INDEX(Innertable,MATCH($B8,#REF!,0),MATCH(F$7,#REF!,0)) ->  | G8: =INDEX(Innertable,MATCH($B8,#REF!,0),MATCH(G$7,#REF!,0)) ->  | I8: =INDEX(Innertable,MATCH($B8,#REF!,0),MATCH(I$7,#REF!,0)) ->  | L8: A1 (m^2) | M8: =M5*M6 -> 0.00032 | N8: I1 (m^4) | O8: =(M5*M6^3)/12 -> 2.666666667e-11
B9: Yield strength, Pa | C9: =INDEX(Innertable,MATCH($B9,#REF!,0),MATCH(C$7,#REF!,0)) ->  | E9: =INDEX(Innertable,MATCH($B9,#REF!,0),MATCH(E$7,#REF!,0)) ->  | F9: =INDEX(Innertable,MATCH($B9,#REF!,0),MATCH(F$7,#REF!,0)) ->  | G9: =INDEX(Innertable,MATCH($B9,#REF!,0),MATCH(G$7,#REF!,0)) ->  | I9: =INDEX(Innertable,MATCH($B9,#REF!,0),MATCH(I$7,#REF!,0)) ->  | L9: A2 (m^2) | M9: =N5*N6 -> 0.00032 | N9: I2 (m^4) | O9: =(N5*N6^3)/12 -> 2.666666667e-11
B10: UTS, Pa | C10: =INDEX(Innertable,MATCH($B10,#REF!,0),MATCH(C$7,#REF!,0)) ->  | E10: =INDEX(Innertable,MATCH($B10,#REF!,0),MATCH(E$7,#REF!,0)) ->  | F10: =INDEX(Innertable,MATCH($B10,#REF!,0),MATCH(F$7,#REF!,0)) ->  | G10: =INDEX(Innertable,MATCH($B10,#REF!,0),MATCH(G$7,#REF!,0)) ->  | I10: =INDEX(Innertable,MATCH($B10,#REF!,0),MATCH(I$7,#REF!,0)) ->  | L10: y1 (m) | M10: =M6/2 -> 0.0005 | N10: Ic1 (m^4) | O10: =O8+(M8*($M$12-M10)^2) -> 2.890666667e-08
B11: Yield strength, welded, Pa | C11: =INDEX(Innertable,MATCH($B11,#REF!,0),MATCH(C$7,#REF!,0)) ->  | E11: =INDEX(Innertable,MATCH($B11,#REF!,0),MATCH(E$7,#REF!,0)) ->  | F11: =INDEX(Innertable,MATCH($B11,#REF!,0),MATCH(F$7,#REF!,0)) ->  | G11: =INDEX(Innertable,MATCH($B11,#REF!,0),MATCH(G$7,#REF!,0)) ->  | I11: =INDEX(Innertable,MATCH($B11,#REF!,0),MATCH(I$7,#REF!,0)) ->  | L11: y2 (m) | M11: =(I18-0.5*I20)*0.001 -> 0.0195 | N11: Ic2 (m^4) | O11: =O9+(M9*($M$12-M11)^2) -> 2.890666667e-08
B12: UTS welded, Pa | C12: =INDEX(Innertable,MATCH($B12,#REF!,0),MATCH(C$7,#REF!,0)) ->  | E12: =INDEX(Innertable,MATCH($B12,#REF!,0),MATCH(E$7,#REF!,0)) ->  | F12: =INDEX(Innertable,MATCH($B12,#REF!,0),MATCH(F$7,#REF!,0)) ->  | G12: =INDEX(Innertable,MATCH($B12,#REF!,0),MATCH(G$7,#REF!,0)) ->  | I12: =INDEX(Innertable,MATCH($B12,#REF!,0),MATCH(I$7,#REF!,0)) ->  | L12: Centroid (m) | M12: =(M8*M10+M9*M11)/(M8+M9) -> 0.01 | N12: Ic12 (m^4) | O12: =SUM(O10:O11) -> 5.781333333e-08
B14: Number of tubes | C14: 3 | E14: 3 | F14: 0 | G14: 0
B15: Tube OD, mm | C15: 25.4 | E15: 25.4 | F15: 25.4 | G15: 25.4
B16: Wall, mm | C16: 1.6 | E16: 1.6 | F16: 1.6 | G16: 1.6
F17: Baseline design? | G17: =IF(AND(K27>=100,F2="tubing only",NOT(OR(E18="NO",F18="NO",G18="NO"))),"YES","NO") -> 
B18: Thickness of panel, mm | E18: =IF(E14=0,"N/A",IF(AND(E5=$C$5,E15>=25.4,E16>=1.6),"YES","NO")) -> YES | F18: =IF(F14=0,"N/A",IF(AND(F5=$C$5,F15>=25.4,F16>=1.6),"YES","NO")) -> N/A | G18: =IF(G14=0,"N/A",IF(AND(G5=$C$5,G15>=25.4,G16>=1.6),"YES","NO")) -> N/A | I18: =I19+I20+I21 -> 20
B19: Thickness of core, mm | I19: 18
B20: Thickness of inner skin, mm | I20: 1
B21: Thickness of outer skin, mm | I21: 1
B22: Panel height,mm | I22: 320
B24: OD, m | C24: =C15/1000 -> 0.0254 | E24: =IF($F$2="composite only","No tubes",IF(E14=0,"No tubes",E15/1000)) -> 0.0254 | F24: =IF($F$2="composite only","No tubes",IF(F14=0,"No tubes",F15/1000)) -> No tubes | G24: =IF($F$2="composite only","No tubes",IF(G14=0,"No tubes",G15/1000)) -> No tubes
B25: Wall, m | C25: =C16/1000 -> 0.0016 | E25: =IF(E24="no tubes","",IF(E14=0,"",E16/1000)) -> 0.0016 | F25: =IF(F24="no tubes","",IF(F14=0,"",F16/1000)) ->  | G25: =IF(G24="no tubes","",IF(G14=0,"",G16/1000)) -> 
B26: I, m^4 | C26: =IF(C6="Round",((C24)^4-((C24-2*C25))^4)*3.142/64,((C24)^4-((C24-2*C25))^4)/12) -> 8.50991848e-09 | E26: =IF(E24="no tubes","",IF(E14=0,"",IF(E6="Round",(((E24)^4-((E24-2*E25))^4)*3.142/64),IF(E6="Square",(((E24)^4-((E24-2*E25))^4)/12),"")))) -> 8.50991848e-09 | F26: =IF(F24="no tubes","",IF(F14=0,"",IF(F6="Round",(((F24)^4-((F24-2*F25))^4)*3.142/64),IF(F6="Square",(((F24)^4-((F24-2*F25))^4)/12),"")))) ->  | G26: =IF(G24="no tubes","",IF(G14=0,"",IF(G6="Round",(((G24)^4-((G24-2*G25))^4)*3.142/64),IF(G6="Square",(((G24)^4-((G24-2*G25))^4)/12),"")))) ->  | H26: =IF(SUM(E26:G26)>0,SUM(E26:G26),"") -> 8.50991848e-09 | I26: =IF($F$2="Tubing only","Tubing Only",O12) -> Tubing Only | J26: =IF($F$2="Tubing only",H26,IF($F$2="Composite only",I26,IF($F$2="Tubes + Composite",H26+I26,"No Type Selected"))) -> 8.50991848e-09
B27: EI | C27: =C8*C26*C14 ->  | E27: =IF(E24="no tubes","",IF(E14=0,"",E8*E26*E14)) ->  | F27: =IF(F24="no tubes","",IF(F14=0,"",F8*F26*F14)) ->  | G27: =IF(G24="no tubes","",IF(G14=0,"",G8*G26*G14)) ->  | H27: =IF(SUM(E27:G27)>0,SUM(E27:G27),"") ->  | I27: =IF(I26="Tubing Only","",I26*I8) ->  | K27: =IF(AND(NOT($F$2="tubes + composite"),OR(AND($G$14>0,G27<(C27/3)),AND($F$14>0,F27<(C27/3)),AND($E$14>0,E27<(C27/3)))),0,100*J27/C27) ->  | L27: =IF((99.9>K27)*AND(K27>33.3),"For Composites Only, Additional Proof Required","") -> 
B28: Area, mm^2 | C28: =IF(C24="no tubes","",IF(C14=0,"",IF(C6="Round",C14*((C15^2-(C15-2*C16)^2)*PI()/4),IF(C6="Square",C14*(C15^2-(C15-2*C16)^2),"")))) -> 358.8955447 | E28: =IF(E24="no tubes","",IF(E14=0,"",IF(E6="Round",E14*((E15^2-(E15-2*E16)^2)*PI()/4),IF(E6="Square",E14*(E15^2-(E15-2*E16)^2),"")))) -> 358.8955447 | F28: =IF(F24="no tubes","",IF(F14=0,"",IF(F6="Round",F14*((F15^2-(F15-2*F16)^2)*PI()/4),IF(F6="Square",F14*(F15^2-(F15-2*F16)^2),"")))) ->  | G28: =IF(G24="no tubes","",IF(G14=0,"",IF(G6="Round",G14*((G15^2-(G15-2*G16)^2)*PI()/4),IF(G6="Square",G14*(G15^2-(G15-2*G16)^2),"")))) ->  | H28: 358.8955447 | I28: =IF(I26="Tubing Only","",(I18-I19)*I22) ->  | J28: 358.8955447 | K28: =IF(AND($F$2="tubing only",AND(E5="steel",F5="steel",G5="steel")),100*J28/C28,"NA") -> 100 | L28: =IF(AND(95<K28,K28<100),"For tubes only, provided your actual tube measures >= your nominal OD and wall this is OK","") -> 
B29: Yield tensile strength, N | C29: =C$28*C9/1000000 ->  | E29: =IF(E24="no tubes","",IF(E14=0,"",E$28*E9/1000000)) ->  | F29: =IF(F24="no tubes","",IF(F14=0,"",F$28*F9/1000000)) ->  | G29: =IF(G24="no tubes","",IF(G14=0,"",G$28*G9/1000000)) ->  | I29: =IF(I26="Tubing Only","",I28*I9/1000000) ->  | K29: =IF(AND($F$2="tubing only",OR($E29<0.95*($E$14/$C$14)*$C29,$F29<0.95*($F$14/$C$14)*$C29,$G29<0.95*($G$14/$C$14)*$C29)),0,100*J29/C29) ->  | L29: =IF(AND(95<K29,K29<100),"For tubes only, provided your actual tube measures >= your nominal OD and wall this is OK","") -> 
B30: UTS, N | C30: =C$28*C10/1000000 ->  | E30: =IF(E24="no tubes","",IF(E14=0,"",E$28*E10/1000000)) ->  | F30: =IF(F24="no tubes","",IF(F14=0,"",F$28*F10/1000000)) ->  | G30: =IF(G24="no tubes","",IF(G14=0,"",G$28*G10/1000000)) ->  | I30: =IF(I26="Tubing Only","",I28*I10/1000000) ->  | K30: =IF(AND($F$2="tubing only",OR($E30<0.95*($E$14/$C$14)*$C30,$F30<0.95*($F$14/$C$14)*$C30,$G30<0.95*($G$14/$C$14)*$C30)),0,100*J30/C30) ->  | L30: =IF(AND(95<K30,K30<100),"For tubes only, provided your actual tube measures >= your nominal OD and wall this is OK","") -> 
B31: Yield tensile strength, N as welded | C31: =C$28*C11/1000000 ->  | E31: =IF(E24="no tubes","",IF(E14=0,"",E$28*E11/1000000)) ->  | F31: =IF(F24="no tubes","",IF(F14=0,"",F$28*F11/1000000)) ->  | G31: =IF(G24="no tubes","",IF(G14=0,"",G$28*G11/1000000)) ->  | I31: =IF(I26="Tubing Only","",I28*I9/1000000) ->  | K31: =IF(AND($F$2="tubing only",OR($E31<0.95*($E$14/$C$14)*$C31,$F31<0.95*($F$14/$C$14)*$C31,$G31<0.95*($G$14/$C$14)*$C31)),0,100*J31/C31) ->  | L31: =IF(AND(95<K31,K31<100),"For tubes only, provided your actual tube measures >= your nominal OD and wall this is OK","") -> 
B32: UTS, N as welded | C32: =IF(C14=0,"",C$28*C12/1000000) ->  | E32: =IF(E24="no tubes","",IF(E14=0,"",E$28*E12/1000000)) ->  | F32: =IF(F24="no tubes","",IF(F14=0,"",F$28*F12/1000000)) ->  | G32: =IF(G24="no tubes","",IF(G14=0,"",G$28*G12/1000000)) ->  | I32: =IF(I26="tubing only","",I28*I10/1000000) ->  | K32: =IF(AND($F$2="tubing only",OR($E32<0.95*($E$14/$C$14)*$C32,$F32<0.95*($F$14/$C$14)*$C32,$G32<0.95*($G$14/$C$14)*$C32)),0,100*J32/C32) ->  | L32: =IF(AND(95<K32,K32<100),"For tubes only, provided your actual tube measures >= your nominal OD and wall this is OK","") -> 
B33: Max load at mid span to give UTS for 1m long tube, N | C33: =C14*4*C10*C26/(0.5*C24*1) ->  | E33: =IF(E24="no tubes","",IF(E14=0,"",E14*4*E10*E26/(0.5*E24*1))) ->  | F33: =IF(F24="no tubes","",IF(F14=0,"",F14*4*F10*F26/(0.5*F24*1))) ->  | G33: =IF(G24="no tubes","",IF(G14=0,"",G14*4*G10*G26/(0.5*G24*1))) ->  | I33: =IF(I26="tubing only","",4*I10*(I26*2/(I18/1000))/1) ->  | K33: =IF(AND($F$2="tubing only",OR($E33<0.95*($E$14/$C$14)*$C33,$F33<0.95*($F$14/$C$14)*$C33,$G33<0.95*($G$14/$C$14)*$C33)),0,100*J33/C33) ->  | L33: =IF((99.9>K33)*AND(K33>33.3),"For Composites Only, Additional Proof Required","") -> 
B34: Max deflection at baseline load for 1m long tube, m | C34: =IF(C14=0,"",C33*1^3/(48*C27)) ->  | E34: =IF(E24="no tubes","",IF(E14=0,"",($C$33*1^3/(48*E27)))) ->  | F34: =IF(F24="no tubes","",IF(F14=0,"",($C$33*1^3/(48*F27)))) ->  | G34: =IF(G24="no tubes","",IF(G14=0,"",($C$33*1^3/(48*G27)))) ->  | H34: =IF(F2="composite only","",$C$33*1^3/(48*H27)) ->  | I34: =IF(NOT($F$2="tubing only"),$C$33*1^3/(48*I27),"") ->  | J34: =IF($F$2="Tubing only",H34,IF($F$2="Composite only",I34,IF($F$2="Tubes + Composite",$C$33*1^3/(48*J27),"No Type Selected"))) ->  | K34: =IF(AND($F$2="tubing only",J34>1.05*C34),101,100*J34/C34) ->  | L34: =IF((100.1<K34)*AND(K34<300.1),"For Composites Only, Additional Proof Required","") -> 
B35: Energy absorbed up to UTS, J | C35: =0.5*C33*(C33*1^3/(48*C27)) ->  | E35: =IF(E24="no tubes","",0.5*E33*(E33*1^3/(48*E27))) ->  | F35: =IF(F24="no tubes","",0.5*F33*(F33*1^3/(48*F27))) ->  | G35: =IF(G24="no tubes","",0.5*G33*(G33*1^3/(48*G27))) ->  | I35: =IF(I26="tubing only","",0.5*I33*(I33*1^3/(48*I27))) ->  | J35: =IF($F$2="Tubing only",H35,IF($F$2="Composite only",I35,IF($F$2="Tubes + Composite",H35+I35,"No Type Selected"))) ->  | K35: =IF(AND($F$2="tubing only",OR($E$36<$C$36,$F$36<$C$36,$G$36<$C$36)),0,100*J35/C35) ->  | L35: =IF((99.9>K35)*AND(K35>33.3),"For Composites Only, Additional Proof Required","") -> 
C36: =0.99*C27/C14 ->  | E36: =IF(AND($F$2="tubing only",E14>0),E27/E14,9E+99) ->  | F36: =IF(AND($F$2="tubing only",F14>0),F27/F14,9E+99) -> 9e+99 | G36: =IF(AND($F$2="tubing only",G14>0),G27/G14,9E+99) -> 9e+99
B37: CAD Screenshots / Images proving all panel dimensions and any additional proof must be appended below
B39: Alternative designs as per side/rear and floor division similarly to TAB T3.15 T3.5 SIS are allowed. Copy the 'T3.15 T3.5 SIS' TAB and rename accordingly.
B40: Include and clearly mark your design in the space below:

Sheet EV5.5.5 Alt. Matls Summary
B1: Alternative Material Proof of Equivalency | I1: BACK to COVER SHEET
B3: Material Property | C3: Baseline Floor | D3: Your Floor | E3: Baseline Ext. Wall | F3: Your Ext. Wall | G3: Baseline Int. Wall | H3: Your Int. Walls | I3: Baseline Cover | J3: Your Cover
B4: Material type | C4: Steel | D4: Composite | E4: Steel | F4: Composite | G4: Steel | H4: Composite | I4: Steel | J4: Composite
B5: Material name /grade | C5: Steel | D5: Your Floor | E5: =C5 -> Steel | F5: Your Ext. Walls | G5: =C5 -> Steel | H5: Your Int. Walls | I5: =C5 -> Steel | J5: Your Cover
B6: Youngs Modulus, E | C6: 200000000000 | D6: ='EV5.5.5 Alt. Matl - 3pt Bending'!C59*1000000000 -> 0 | E6: =C6 -> 200000000000 | F6: ='EV5.5.5 Alt. Matl - 3pt Bending'!V59*1000000000 -> 0 | G6: =C6 -> 200000000000 | H6: ='EV5.5.5 Alt. Matl - 3pt Bending'!AO59*1000000000 -> 0 | I6: =C6 -> 200000000000 | J6: ='EV5.5.5 Alt. Matl - 3pt Bending'!BH59*1000000000 -> 0
B7: Yield strength, Pa | C7: 305000000 | D7: ='EV5.5.5 Alt. Matl - 3pt Bending'!C60*1000000 -> 0 | E7: 305000000 | F7: ='EV5.5.5 Alt. Matl - 3pt Bending'!V60*1000000 -> 0 | G7: 305000000 | H7: ='EV5.5.5 Alt. Matl - 3pt Bending'!AO60*1000000 -> 0 | I7: 305000000 | J7: ='EV5.5.5 Alt. Matl - 3pt Bending'!BH60*1000000 -> 0
B8: UTS, Pa | C8: 365000000 | D8: =D7 -> 0 | E8: 365000000 | F8: =F7 -> 0 | G8: 365000000 | H8: =H7 -> 0 | I8: 365000000 | J8: =J7 -> 0
B9: Yield strength, welded, Pa | C9: 180000000 | D9: N/A | E9: 180000000 | F9: N/A | G9: 180000000 | H9: N/A | I9: 180000000 | J9: N/A
B10: UTS welded, Pa | C10: 300000000 | D10: N/A | E10: 300000000 | F10: N/A | G10: 300000000 | H10: N/A | I10: 300000000 | J10: N/A
B11: UTS shear, Pa | C11: 219000000 | D11: ='EV5.5.5 Alt. Matl - Shear'!D54*1000000 -> 0 | E11: 219000000 | F11: ='EV5.5.5 Alt. Matl - Shear'!W54*1000000 -> 0 | G11: 219000000 | H11: ='EV5.5.5 Alt. Matl - Shear'!AP54*1000000 -> 0 | I11: 219000000 | J11: ='EV5.5.5 Alt. Matl - Shear'!BI54*1000000 -> 0
B12: Thickness of panel, mm | C12: 1.25 | D12: =SUM('EV5.5.5 Alt. Matl - 3pt Bending'!C55:C57) -> 2 | E12: 0.9 | F12: =SUM('EV5.5.5 Alt. Matl - 3pt Bending'!V55:V57) -> 2 | G12: 0.9 | H12: =SUM('EV5.5.5 Alt. Matl - 3pt Bending'!AO55:AO57) -> 2 | I12: 0.9 | J12: =SUM('EV5.5.5 Alt. Matl - 3pt Bending'!BH55:BH57) -> 2
B13: Thickness of inner skin, mm | C13: N/A | D13: ='EV5.5.5 Alt. Matl - 3pt Bending'!C56 -> 1 | E13: N/A | F13: ='EV5.5.5 Alt. Matl - 3pt Bending'!V56 -> 1 | G13: N/A | H13: ='EV5.5.5 Alt. Matl - 3pt Bending'!AO56 -> 1 | I13: N/A | J13: ='EV5.5.5 Alt. Matl - 3pt Bending'!BH56 -> 1
B14: Thickness of outer skin, mm | C14: N/A | D14: ='EV5.5.5 Alt. Matl - 3pt Bending'!C57 -> 1 | E14: N/A | F14: ='EV5.5.5 Alt. Matl - 3pt Bending'!V57 -> 1 | G14: N/A | H14: ='EV5.5.5 Alt. Matl - 3pt Bending'!AO57 -> 1 | I14: N/A | J14: ='EV5.5.5 Alt. Matl - 3pt Bending'!BH57 -> 1
B15: Panel height/width,mm | C15: =D15 -> 300 | D15: ='Accumulator Pics'!E14 -> 300 | E15: =F15 -> 0 | F15: ='Accumulator Pics'!E38 -> 0 | G15: =H15 -> 0 | H15: ='Accumulator Pics'!E62 -> 0 | I15: =J15 -> 0 | J15: ='Accumulator Pics'!E86 -> 0
B16: I, m^4 | C16: =0.001*C15*(0.001*C12)^3/12 -> 4.8828125e-11 | D16: =(D15/'EV5.5.5 Alt. Matl - 3pt Bending'!C54)*'EV5.5.5 Alt. Matl - 3pt Bending'!C58*0.000000000001 -> 2e-10 | E16: =E15*E12^3/12000000000000 -> 0 | F16: =(F15/'EV5.5.5 Alt. Matl - 3pt Bending'!V54)*'EV5.5.5 Alt. Matl - 3pt Bending'!V58*0.000000000001 -> 0 | G16: =G15*G12^3/12000000000000 -> 0 | H16: =(H15/'EV5.5.5 Alt. Matl - 3pt Bending'!AO54)*'EV5.5.5 Alt. Matl - 3pt Bending'!AO58*0.000000000001 -> 0 | I16: =I15*I12^3/12000000000000 -> 0 | J16: =(J15/'EV5.5.5 Alt. Matl - 3pt Bending'!BH54)*'EV5.5.5 Alt. Matl - 3pt Bending'!BH58*0.000000000001 -> 0
B17: EI | C17: =C16*C6 -> 9.765625 | D17: 0 | E17: 0 | F17: 0 | G17: 0 | H17: 0 | I17: 0 | J17: 0
B18: Area, mm^2 | C18: =C15*C12 -> 375 | D18: =('EV5.5.5 Alt. Matl - 3pt Bending'!C56+'EV5.5.5 Alt. Matl - 3pt Bending'!C57)*'EV5.5.5 Alt. Matls Summary'!D15 -> 600 | E18: =E15*E12 -> 0 | F18: =('EV5.5.5 Alt. Matl - 3pt Bending'!V56+'EV5.5.5 Alt. Matl - 3pt Bending'!V57)*'EV5.5.5 Alt. Matls Summary'!F15 -> 0 | G18: =G15*G12 -> 0 | H18: =('EV5.5.5 Alt. Matl - 3pt Bending'!AO56+'EV5.5.5 Alt. Matl - 3pt Bending'!AO57)*'EV5.5.5 Alt. Matls Summary'!H15 -> 0 | I18: =I15*I12 -> 0 | J18: =('EV5.5.5 Alt. Matl - 3pt Bending'!BH56+'EV5.5.5 Alt. Matl - 3pt Bending'!BH57)*'EV5.5.5 Alt. Matls Summary'!J15 -> 0
B19: UTS, N | C19: =C18*C8*0.000001 -> 136875 | D19: 0 | E19: 0 | F19: 0 | G19: 0 | H19: 0 | I19: 0 | J19: 0
B21: Safety Factors
B22: Bending Strength | D22: =IF(C19=0,0,D19/C19) -> 0 | F22: =IF(E19=0,0,F19/E19) -> 0 | H22: =IF(G19=0,0,H19/G19) -> 0 | J22: =IF(I19=0,0,J19/I19) -> 0
B23: Flexural Rigidity | D23: =IF(C17=0,0,D17/C17) -> 0 | F23: =IF(E17=0,0,F17/E17) -> 0 | H23: =IF(G17=0,0,H17/G17) -> 0 | J23: =IF(I17=0,0,J17/I17) -> 0
B24: Shear | D24: =((D13+D14)*D11)/(C11*C12) -> 0 | F24: =((F13+F14)*F11)/(E11*E12) -> 0 | H24: =((H13+H14)*H11)/(G11*G12) -> 0 | J24: =((J13+J14)*J11)/(I11*I12) -> 0
D25: =IF(OR(D22<1,D23<1,D24<1,),"FAIL","PASS") -> FAIL | F25: =IF(OR(F22<1,F23<1,F24<1,),"FAIL","PASS") -> FAIL | H25: =IF(OR(H22<1,H23<1,H24<1,),"FAIL","PASS") -> FAIL | J25: =IF(OR(J22<1,J23<1,J24<1,),"FAIL","PASS") -> FAIL

Sheet EV5.5.5 Alt. Matl - 3pt Bending
A1: ASES - EV5.5.5 LAMINATE TEST RESULTS - FLOOR | T1: ASES - EV5.5.5 LAMINATE TEST RESULTS - EXT. WALLS | AM1: ASES - EV5.5.5 LAMINATE TEST RESULTS - INT. WALLS | BF1: ASES - EV5.5.5 LAMINATE TEST RESULTS - COVER | BY1: ASES - DIFFERENT LAYUP RIG COMPLIANCE TEST RESULTS (OPTIONAL)
A3: University Name | D3: =IF('Cover Sheet'!$D$15>0,'Cover Sheet'!$D$15,"") ->  | K3: Car No.(s) & Event(s) | O3: =IF('Cover Sheet'!$O$15>0,'Cover Sheet'!$O$15,"") ->  | T3: University Name | W3: =IF('Cover Sheet'!$D$15>0,'Cover Sheet'!$D$15,"") ->  | AD3: Car No.(s) & Event(s) | AH3: =IF('Cover Sheet'!$O$15>0,'Cover Sheet'!$O$15,"") ->  | AM3: University Name | AP3: =IF('Cover Sheet'!$D$15>0,'Cover Sheet'!$D$15,"") ->  | AW3: Car No.(s) & Event(s) | BA3: =IF('Cover Sheet'!$O$15>0,'Cover Sheet'!$O$15,"") ->  | BF3: University Name | BI3: =IF('Cover Sheet'!$D$15>0,'Cover Sheet'!$D$15,"") ->  | BP3: Car No.(s) & Event(s) | BT3: =IF('Cover Sheet'!$O$15>0,'Cover Sheet'!$O$15,"") ->  | BY3: University Name | CB3: =IF('Cover Sheet'!$D$15>0,'Cover Sheet'!$D$15,"") ->  | CI3: Car No.(s) & Event(s) | CM3: =IF('Cover Sheet'!$O$15>0,'Cover Sheet'!$O$15,"") -> 
B7: Paste images of test setup here | U7: Paste images of test setup here | AN7: Paste images of test setup here | BG7: Paste images of test setup here | BZ7: Paste images of test setup here
B9: All test specimens must be presented at Tech. Inspection | U9: All test specimens must be presented at Tech. Inspection | AN9: All test specimens must be presented at Tech. Inspection | BG9: All test specimens must be presented at Tech. Inspection | BZ9: All test specimens must be presented at Tech. Inspection
B11: Please note the changed rules: T3.5.1 & T3.5.4 wrt. identifiable pictures! | U11: Please note the changed rules: T3.5.1 & T3.5.4 wrt. identifiable pictures! | AN11: Please note the changed rules: T3.5.1 & T3.5.4 wrt. identifiable pictures! | BG11: Please note the changed rules: T3.5.1 & T3.5.4 wrt. identifiable pictures! | BZ11: Please note the changed rules: T3.5.1 & T3.5.4 wrt. identifiable pictures!
A19: Figure 1: Test setup - Laminate Panel [Your Structure] | T19: Figure 1: Test setup - Laminate Panel [Your Structure] | AM19: Figure 1: Test setup - Laminate Panel [Your Structure] | BF19: Figure 1: Test setup - Laminate Panel [Your Structure] | BY19: Figure 3: Test setup - Steel tube(s)
B23: Paste load deflection curve here | U23: Paste load deflection curve here | AN23: Paste load deflection curve here | BG23: Paste load deflection curve here | BZ23: Paste load deflection curve here
B25: Logged data must be appended in the section below | U25: Logged data must be appended in the section below | AN25: Logged data must be appended in the section below | BG25: Logged data must be appended in the section below | BZ25: Logged data must be appended in the section below
B27: Please note the change rule T3.5.3 wrt. a.o. only thicker cores may be tested! | U27: Please note the change rule T3.5.3 wrt. a.o. only thicker cores may be tested! | AN27: Please note the change rule T3.5.3 wrt. a.o. only thicker cores may be tested! | BG27: Please note the change rule T3.5.3 wrt. a.o. only thicker cores may be tested! | BZ27: Please note the change rule T3.5.3 wrt. a.o. only thicker cores may be tested!
B29: Add your stiffness gradient to your load deflection curve, and include markers | U29: Add your stiffness gradient to your load deflection curve, and include markers | AN29: Add your stiffness gradient to your load deflection curve, and include markers | BG29: Add your stiffness gradient to your load deflection curve, and include markers | BZ29: Add your stiffness gradient to your load deflection curve, and include markers
B30: for the two data points taken! | U30: for the two data points taken! | AN30: for the two data points taken! | BG30: for the two data points taken! | BZ30: for the two data points taken!
A43: Figure 2: Load Deflection Curve | T43: Figure 2: Load Deflection Curve | AM43: Figure 2: Load Deflection Curve | BF43: Figure 2: Load Deflection Curve | BY43: Figure 4: Load Deflection Curve - Steel Tube(s)
A45: Enter values for minimum and maximum load/deflection in linear-elastic region | T45: Enter values for minimum and maximum load/deflection in linear-elastic region | AM45: Enter values for minimum and maximum load/deflection in linear-elastic region | BF45: Enter values for minimum and maximum load/deflection in linear-elastic region | BY45: Enter values for minimum and maximum load/deflection in linear-elastic region
A46: x1 (mm) | C46: 0 | E46: y1 (N) | G46: 0 | M46: Gradient (N/mm) | N46: =IF(C47>0,(((G47-G46)/(C47-C46))^-1-IF(CL52>0,CL52^-1,0))^-1,0) -> 0 | T46: x1 (mm) | V46: 0 | X46: y1 (N) | Z46: 0 | AF46: Gradient (N/mm) | AG46: =IF(V47>0,(((Z47-Z46)/(V47-V46))^-1-IF(CL52>0,CL52^-1,0))^-1,0) -> 0 | AM46: x1 (mm) | AO46: 0 | AQ46: y1 (N) | AS46: 0 | AY46: Gradient (N/mm) | AZ46: =IF(AO47>0,(((AS47-AS46)/(AO47-AO46))^-1-IF(CL52>0,CL52^-1,0))^-1,0) -> 0 | BF46: x1 (mm) | BH46: 0 | BJ46: y1 (N) | BL46: 0 | BR46: Gradient (N/mm) | BS46: =IF(BH47>0,(((BL47-BL46)/(BH47-BH46))^-1-IF(CL52>0,CL52^-1,0))^-1,0) -> 0 | BY46: x1 (mm) | CA46: 0 | CC46: y1 (N) | CE46: 0 | CK46: Gradient (N/mm) | CL46: =IF((CA47-CA46)>0,(CE47-CE46)/(CA47-CA46),0) -> 0
A47: x2 (mm) | C47: 0 | E47: y2 (N) | G47: 0 | T47: x2 (mm) | V47: 0 | X47: y2 (N) | Z47: 0 | AM47: x2 (mm) | AO47: 0 | AQ47: y2 (N) | AS47: 0 | BF47: x2 (mm) | BH47: 0 | BJ47: y2 (N) | BL47: 0 | BY47: x2 (mm) | CA47: 0 | CC47: y2 (N) | CE47: 0
C48: =IF(ABS(C47-C46)<1,"Supporting points shall be at least 1 mm apart!","") -> Supporting points shall be at least 1 mm apart! | V48: =IF(ABS(V47-V46)<1,"Supporting points shall be at least 1 mm apart!","") -> Supporting points shall be at least 1 mm apart! | AO48: =IF(ABS(AO47-AO46)<1,"Supporting points shall be at least 1 mm apart!","") -> Supporting points shall be at least 1 mm apart! | BH48: =IF(ABS(BH47-BH46)<1,"Supporting points shall be at least 1 mm apart!","") -> Supporting points shall be at least 1 mm apart! | CA48: =IF(ABS(CA47-CA46)<1,"Supporting points shall be at least 1 mm apart!","") -> Supporting points shall be at least 1 mm apart!
A49: Enter value for force at panel failure or maximum tested force | T49: Enter value for force at panel failure or maximum tested force | AM49: Enter value for force at panel failure or maximum tested force | BF49: Enter value for force at panel failure or maximum tested force | BY49: Enter details of tube(s) tested
A50: ymax (N) | C50: 0 | T50: ymax (N) | V50: 0 | AM50: ymax (N) | AO50: 0 | BF50: ymax (N) | BH50: 0 | BZ50: l (mm) | CA50: =C53 -> 200 | CC50: Tube Support Span | CK50: Theoretical EI (N.mm2) | CL50: =CA51*(1/64)*PI()*(CA52^4-CA53^4)*200000 -> 1744439000 | CN50: =CL50*48/CA50^3 -> 10466.634
BZ51: n | CA51: 1 | CC51: Number of Tubes | CK51: Tested EI (N.mm2) | CL51: =IF(CL46>0,(CL46*CA50^3)/48,CL50) -> 1744439000 | CN51: =CL51*48/CA50^3 -> 10466.634
A52: Enter details of test setup, panel core and skin thicknesses below | T52: Enter details of test setup, panel core and skin thicknesses below | AM52: Enter details of test setup, panel core and skin thicknesses below | BF52: Enter details of test setup, panel core and skin thicknesses below | BZ52: Do (mm) | CA52: 25.4 | CC52: Tube Outer Diameter | CK52: Rig Compliance (N/mm) | CL52: =IF(CL51>=CL50,0,(CN51^-1-CN50^-1)^-1) -> 0
B53: l (mm) | C53: 200 | E53: Panel Support Span | U53: l (mm) | V53: 200 | X53: Panel Support Span | AN53: l (mm) | AO53: 200 | AQ53: Panel Support Span | BG53: l (mm) | BH53: 200 | BJ53: Panel Support Span | BZ53: Di (mm) | CA53: 22.1 | CC53: Tube Inner Diameter
A54: h (mm) | C54: 150 | E54: Panel Height | T54: h (mm) | V54: 150 | X54: Panel Height | AM54: h (mm) | AO54: 150 | AQ54: Panel Height | BF54: h (mm) | BH54: 150 | BJ54: Panel Height
A55: b (mm) | C55: 0 | E55: Core Thickness | T55: b (mm) | V55: 0 | X55: Core Thickness | AM55: b (mm) | AO55: 0 | AQ55: Core Thickness | BF55: b (mm) | BH55: 0 | BJ55: Core Thickness
A56: t1 (mm) | C56: 1 | E56: Inner Skin Thickness | J56: =IF(C56<0.4*C57,"Asymmetrical lay-up: skin too thin in comparison, see T3.4.4.","") ->  | T56: t1 (mm) | V56: 1 | X56: Inner Skin Thickness | AC56: =IF(V56<0.4*V57,"Asymmetrical lay-up: skin too thin in comparison, see T3.4.4.","") ->  | AM56: t1 (mm) | AO56: 1 | AQ56: Inner Skin Thickness | AV56: =IF(AO56<0.4*AO57,"Asymmetrical lay-up: skin too thin in comparison, see T3.4.4.","") ->  | BF56: t1 (mm) | BH56: 1 | BJ56: Inner Skin Thickness | BO56: =IF(BH56<0.4*BH57,"Asymmetrical lay-up: skin too thin in comparison, see T3.4.4.","") -> 
A57: t2 (mm) | C57: 1 | E57: Outer Skin Thickness | J57: =IF(C57<0.4*C56,"Asymmetrical lay-up: skin too thin in comparison, see T3.4.4.","") ->  | T57: t2 (mm) | V57: 1 | X57: Outer Skin Thickness | AC57: =IF(V57<0.4*V56,"Asymmetrical lay-up: skin too thin in comparison, see T3.4.4.","") ->  | AM57: t2 (mm) | AO57: 1 | AQ57: Outer Skin Thickness | AV57: =IF(AO57<0.4*AO56,"Asymmetrical lay-up: skin too thin in comparison, see T3.4.4.","") ->  | BF57: t2 (mm) | BH57: 1 | BJ57: Outer Skin Thickness | BO57: =IF(BH57<0.4*BH56,"Asymmetrical lay-up: skin too thin in comparison, see T3.4.4.","") -> 
B58: I (mm4) | C58: =(C54*(((C55+C56+C57)^3)-(C55^3)))/12 -> 100 | E58: Second moment of area | U58: I (mm4) | V58: =(V54*(((V55+V56+V57)^3)-(V55^3)))/12 -> 100 | X58: Second moment of area | AN58: I (mm4) | AO58: =(AO54*(((AO55+AO56+AO57)^3)-(AO55^3)))/12 -> 100 | AQ58: Second moment of area | BG58: I (mm4) | BH58: =(BH54*(((BH55+BH56+BH57)^3)-(BH55^3)))/12 -> 100 | BJ58: Second moment of area
B59: E (GPa) | C59: =IF(C47>0,0.001*((N46*(C47-C46)*C53^3)/(48*C58*(C47-C46))),0) -> 0 | E59: Skin modulus of elasticity | U59: E (GPa) | V59: =IF(V47>0,0.001*((AG46*(V47-V46)*V53^3)/(48*V58*(V47-V46))),0) -> 0 | X59: Skin modulus of elasticity | AN59: E (GPa) | AO59: =IF(AO47>0,0.001*((AZ46*(AO47-AO46)*AO53^3)/(48*AO58*(AO47-AO46))),0) -> 0 | AQ59: Skin modulus of elasticity | BG59: E (GPa) | BH59: =IF(BH47>0,0.001*((BS46*(BH47-BH46)*BH53^3)/(48*BH58*(BH47-BH46))),0) -> 0 | BJ59: Skin modulus of elasticity
B60: σUTS(MPa) | C60: =C50*C53*0.5*SUM(C55:D57)/(4*C58) -> 0 | E60: UTS of skins | U60: σUTS(MPa) | V60: =V50*V53*0.5*SUM(V55:W57)/(4*V58) -> 0 | X60: UTS of skins | AN60: σUTS(MPa) | AO60: =AO50*AO53*0.5*SUM(AO55:AP57)/(4*AO58) -> 0 | AQ60: UTS of skins | BG60: σUTS(MPa) | BH60: =BH50*BH53*0.5*SUM(BH55:BI57)/(4*BH58) -> 0 | BJ60: UTS of skins
A61: tx (mm) | E61: Thickness for fire resistance rating in data sheet (FAR: Use laminate thickness) | T61: tx (mm) | X61: Thickness for fire resistance rating in data sheet (FAR: Use laminate thickness) | AM61: tx (mm) | AQ61: Thickness for fire resistance rating in data sheet (FAR: Use laminate thickness) | BF61: tx (mm) | BJ61: Thickness for fire resistance rating in data sheet (FAR: Use laminate thickness)
C62: =_xlfn.IFS(AND(NOT(C55=0),C56>=C61,C57>=C61,NOT(ISBLANK(C61)),NOT(C61=0)),"PASS",AND(C55=0,(C56+C57)>=C61,NOT(ISBLANK(C61)),NOT(C61=0)),"PASS", AND(NOT(C55=0),OR(C56<C61,C57<C61,ISBLANK(C61),C61=0)),"FAIL",AND(C55=0,OR((C56+C57)<C61,ISBLANK(C61),C61=0)),"FAIL") -> FAIL | V62: =_xlfn.IFS(AND(NOT(V55=0),V56>=V61,V57>=V61,NOT(ISBLANK(V61)),NOT(V61=0)),"PASS",AND(V55=0,(V56+V57)>=V61,NOT(ISBLANK(V61)),NOT(V61=0)),"PASS", AND(NOT(V55=0),OR(V56<V61,V57<V61,ISBLANK(V61),V61=0)),"FAIL",AND(V55=0,OR((V56+V57)<V61,ISBLANK(V61),V61=0)),"FAIL") -> FAIL | AO62: =_xlfn.IFS(AND(NOT(AO55=0),AO56>=AO61,AO57>=AO61,NOT(ISBLANK(AO61)),NOT(AO61=0)),"PASS",AND(AO55=0,(AO56+AO57)>=AO61,NOT(ISBLANK(AO61)),NOT(AO61=0)),"PASS", AND(NOT(AO55=0),OR(AO56<AO61,AO57<AO61,ISBLANK(AO61),AO61=0)),"FAIL",AND(AO55=0,OR((AO56+AO57)<AO61,ISBLANK(AO61),AO61=0)),"FAIL") -> FAIL | BH62: =_xlfn.IFS(AND(NOT(BH55=0),BH56>=BH61,BH57>=BH61,NOT(ISBLANK(BH61)),NOT(BH61=0)),"PASS",AND(BH55=0,(BH56+BH57)>=BH61,NOT(ISBLANK(BH61)),NOT(BH61=0)),"PASS", AND(NOT(BH55=0),OR(BH56<BH61,BH57<BH61,ISBLANK(BH61),BH61=0)),"FAIL",AND(BH55=0,OR((BH56+BH57)<BH61,ISBLANK(BH61),BH61=0)),"FAIL") -> FAIL
A63: Paste in logged data from test below (no pictures of data): | T63: Paste in logged data from test below (no pictures of data): | AM63: Paste in logged data from test below (no pictures of data): | BF63: Paste in logged data from test below (no pictures of data): | BY63: Paste in logged data from test below (no pictures of data):
A64: The given units are mandatory. Paste as values with correct decimal separator. | T64: The given units are mandatory. Paste as values with correct decimal separator. | AM64: The given units are mandatory. Paste as values with correct decimal separator. | BF64: The given units are mandatory. Paste as values with correct decimal separator. | BY64: The given units are mandatory. Paste as values with correct decimal separator.
A65: If there are more than 300 datapoints, you must resample the data at a lower frequency. | T65: If there are more than 300 datapoints, you must resample the data at a lower frequency. | AM65: If there are more than 300 datapoints, you must resample the data at a lower frequency. | BF65: If there are more than 300 datapoints, you must resample the data at a lower frequency. | BY65: If there are more than 300 datapoints, you must resample the data at a lower frequency.
C67: F (kN) | D67: s (mm) | F67: Picture of measured testpiece thickness | V67: F (kN) | W67: s (mm) | Y67: Picture of measured testpiece thickness | AO67: F (kN) | AP67: s (mm) | AR67: Picture of measured testpiece thickness | BH67: F (kN) | BI67: s (mm) | BK67: Picture of measured testpiece thickness | CA67: F (kN) | CB67: s (mm) | CD67: Picture of measured testpiece thickness
B68: 1 | U68: 1 | AN68: 1 | BG68: 1 | BZ68: 1
B69: 2 | U69: 2 | AN69: 2 | BG69: 2 | BZ69: 2
B70: 3 | F70: Paste image of measured testpieve between an accurate measuring device, | U70: 3 | Y70: Paste image of measured testpieve between an accurate measuring device, | AN70: 3 | AR70: Paste image of measured testpieve between an accurate measuring device, | BG70: 3 | BK70: Paste image of measured testpieve between an accurate measuring device, | BZ70: 3 | CD70: Paste image of measured testpieve between an accurate measuring device,
B71: 4 | F71: with clearly redable measurment | U71: 4 | Y71: with clearly redable measurment | AN71: 4 | AR71: with clearly redable measurment | BG71: 4 | BK71: with clearly redable measurment | BZ71: 4 | CD71: with clearly redable measurment
B72: 5 | U72: 5 | AN72: 5 | BG72: 5 | BZ72: 5
B73: 6 | U73: 6 | AN73: 6 | BG73: 6 | BZ73: 6
B74: 7 | U74: 7 | AN74: 7 | BG74: 7 | BZ74: 7
B75: 8 | U75: 8 | AN75: 8 | BG75: 8 | BZ75: 8
B76: 9 | U76: 9 | AN76: 9 | BG76: 9 | BZ76: 9
B77: 10 | U77: 10 | AN77: 10 | BG77: 10 | BZ77: 10
B78: 11 | U78: 11 | AN78: 11 | BG78: 11 | BZ78: 11
B79: 12 | U79: 12 | AN79: 12 | BG79: 12 | BZ79: 12
B80: 13 | U80: 13 | AN80: 13 | BG80: 13 | BZ80: 13
B81: 14 | U81: 14 | AN81: 14 | BG81: 14 | BZ81: 14
B82: 15 | U82: 15 | AN82: 15 | BG82: 15 | BZ82: 15
B83: 16 | U83: 16 | AN83: 16 | BG83: 16 | BZ83: 16
B84: 17 | U84: 17 | AN84: 17 | BG84: 17 | BZ84: 17
B85: 18 | U85: 18 | AN85: 18 | BG85: 18 | BZ85: 18
B86: 19 | U86: 19 | AN86: 19 | BG86: 19 | BZ86: 19
B87: 20 | U87: 20 | AN87: 20 | BG87: 20 | BZ87: 20
B88: 21 | U88: 21 | AN88: 21 | BG88: 21 | BZ88: 21
B89: 22 | U89: 22 | AN89: 22 | BG89: 22 | BZ89: 22
B90: 23 | U90: 23 | AN90: 23 | BG90: 23 | BZ90: 23
B91: 24 | U91: 24 | AN91: 24 | BG91: 24 | BZ91: 24
B92: 25 | U92: 25 | AN92: 25 | BG92: 25 | BZ92: 25
B93: 26 | U93: 26 | AN93: 26 | BG93: 26 | BZ93: 26
B94: 27 | U94: 27 | AN94: 27 | BG94: 27 | BZ94: 27
B95: 28 | U95: 28 | AN95: 28 | BG95: 28 | BZ95: 28
B96: 29 | U96: 29 | AN96: 29 | BG96: 29 | BZ96: 29
B97: 30 | U97: 30 | AN97: 30 | BG97: 30 | BZ97: 30
B98: 31 | U98: 31 | AN98: 31 | BG98: 31 | BZ98: 31
B99: 32 | U99: 32 | AN99: 32 | BG99: 32 | BZ99: 32
B100: 33 | U100: 33 | AN100: 33 | BG100: 33 | BZ100: 33
B101: 34 | U101: 34 | AN101: 34 | BG101: 34 | BZ101: 34
B102: 35 | U102: 35 | AN102: 35 | BG102: 35 | BZ102: 35
B103: 36 | U103: 36 | AN103: 36 | BG103: 36 | BZ103: 36
B104: 37 | U104: 37 | AN104: 37 | BG104: 37 | BZ104: 37
B105: 38 | U105: 38 | AN105: 38 | BG105: 38 | BZ105: 38
B106: 39 | U106: 39 | AN106: 39 | BG106: 39 | BZ106: 39
B107: 40 | U107: 40 | AN107: 40 | BG107: 40 | BZ107: 40
B108: 41 | U108: 41 | AN108: 41 | BG108: 41 | BZ108: 41
B109: 42 | U109: 42 | AN109: 42 | BG109: 42 | BZ109: 42
B110: 43 | U110: 43 | AN110: 43 | BG110: 43 | BZ110: 43
B111: 44 | U111: 44 | AN111: 44 | BG111: 44 | BZ111: 44
B112: 45 | U112: 45 | AN112: 45 | BG112: 45 | BZ112: 45
B113: 46 | U113: 46 | AN113: 46 | BG113: 46 | BZ113: 46
B114: 47 | U114: 47 | AN114: 47 | BG114: 47 | BZ114: 47
B115: 48 | U115: 48 | AN115: 48 | BG115: 48 | BZ115: 48
B116: 49 | U116: 49 | AN116: 49 | BG116: 49 | BZ116: 49
B117: 50 | U117: 50 | AN117: 50 | BG117: 50 | BZ117: 50
B118: 51 | U118: 51 | AN118: 51 | BG118: 51 | BZ118: 51
B119: 52 | U119: 52 | AN119: 52 | BG119: 52 | BZ119: 52
B120: 53 | U120: 53 | AN120: 53 | BG120: 53 | BZ120: 53
B121: 54 | U121: 54 | AN121: 54 | BG121: 54 | BZ121: 54
B122: 55 | U122: 55 | AN122: 55 | BG122: 55 | BZ122: 55
B123: 56 | U123: 56 | AN123: 56 | BG123: 56 | BZ123: 56
B124: 57 | U124: 57 | AN124: 57 | BG124: 57 | BZ124: 57
B125: 58 | U125: 58 | AN125: 58 | BG125: 58 | BZ125: 58
B126: 59 | U126: 59 | AN126: 59 | BG126: 59 | BZ126: 59
B127: 60 | U127: 60 | AN127: 60 | BG127: 60 | BZ127: 60
B128: 61 | U128: 61 | AN128: 61 | BG128: 61 | BZ128: 61
B129: 62 | U129: 62 | AN129: 62 | BG129: 62 | BZ129: 62
B130: 63 | U130: 63 | AN130: 63 | BG130: 63 | BZ130: 63
B131: 64 | U131: 64 | AN131: 64 | BG131: 64 | BZ131: 64
B132: 65 | U132: 65 | AN132: 65 | BG132: 65 | BZ132: 65
B133: 66 | U133: 66 | AN133: 66 | BG133: 66 | BZ133: 66
B134: 67 | U134: 67 | AN134: 67 | BG134: 67 | BZ134: 67
B135: 68 | U135: 68 | AN135: 68 | BG135: 68 | BZ135: 68
B136: 69 | U136: 69 | AN136: 69 | BG136: 69 | BZ136: 69
B137: 70 | U137: 70 | AN137: 70 | BG137: 70 | BZ137: 70
B138: 71 | U138: 71 | AN138: 71 | BG138: 71 | BZ138: 71
B139: 72 | U139: 72 | AN139: 72 | BG139: 72 | BZ139: 72
B140: 73 | U140: 73 | AN140: 73 | BG140: 73 | BZ140: 73
B141: 74 | U141: 74 | AN141: 74 | BG141: 74 | BZ141: 74
B142: 75 | U142: 75 | AN142: 75 | BG142: 75 | BZ142: 75
B143: 76 | U143: 76 | AN143: 76 | BG143: 76 | BZ143: 76
B144: 77 | U144: 77 | AN144: 77 | BG144: 77 | BZ144: 77
B145: 78 | U145: 78 | AN145: 78 | BG145: 78 | BZ145: 78
B146: 79 | U146: 79 | AN146: 79 | BG146: 79 | BZ146: 79
B147: 80 | U147: 80 | AN147: 80 | BG147: 80 | BZ147: 80
B148: 81 | U148: 81 | AN148: 81 | BG148: 81 | BZ148: 81
B149: 82 | U149: 82 | AN149: 82 | BG149: 82 | BZ149: 82
B150: 83 | U150: 83 | AN150: 83 | BG150: 83 | BZ150: 83
B151: 84 | U151: 84 | AN151: 84 | BG151: 84 | BZ151: 84
B152: 85 | U152: 85 | AN152: 85 | BG152: 85 | BZ152: 85
B153: 86 | U153: 86 | AN153: 86 | BG153: 86 | BZ153: 86
B154: 87 | U154: 87 | AN154: 87 | BG154: 87 | BZ154: 87
B155: 88 | U155: 88 | AN155: 88 | BG155: 88 | BZ155: 88
B156: 89 | U156: 89 | AN156: 89 | BG156: 89 | BZ156: 89
B157: 90 | U157: 90 | AN157: 90 | BG157: 90 | BZ157: 90
B158: 91 | U158: 91 | AN158: 91 | BG158: 91 | BZ158: 91
B159: 92 | U159: 92 | AN159: 92 | BG159: 92 | BZ159: 92
B160: 93 | U160: 93 | AN160: 93 | BG160: 93 | BZ160: 93
B161: 94 | U161: 94 | AN161: 94 | BG161: 94 | BZ161: 94
B162: 95 | U162: 95 | AN162: 95 | BG162: 95 | BZ162: 95
B163: 96 | U163: 96 | AN163: 96 | BG163: 96 | BZ163: 96
B164: 97 | U164: 97 | AN164: 97 | BG164: 97 | BZ164: 97
B165: 98 | U165: 98 | AN165: 98 | BG165: 98 | BZ165: 98
B166: 99 | U166: 99 | AN166: 99 | BG166: 99 | BZ166: 99
B167: 100 | U167: 100 | AN167: 100 | BG167: 100 | BZ167: 100
B168: 101 | U168: 101 | AN168: 101 | BG168: 101 | BZ168: 101
B169: 102 | U169: 102 | AN169: 102 | BG169: 102 | BZ169: 102
B170: 103 | U170: 103 | AN170: 103 | BG170: 103 | BZ170: 103
B171: 104 | U171: 104 | AN171: 104 | BG171: 104 | BZ171: 104
B172: 105 | U172: 105 | AN172: 105 | BG172: 105 | BZ172: 105
B173: 106 | U173: 106 | AN173: 106 | BG173: 106 | BZ173: 106
B174: 107 | U174: 107 | AN174: 107 | BG174: 107 | BZ174: 107
B175: 108 | U175: 108 | AN175: 108 | BG175: 108 | BZ175: 108
B176: 109 | U176: 109 | AN176: 109 | BG176: 109 | BZ176: 109
B177: 110 | U177: 110 | AN177: 110 | BG177: 110 | BZ177: 110
B178: 111 | U178: 111 | AN178: 111 | BG178: 111 | BZ178: 111
B179: 112 | U179: 112 | AN179: 112 | BG179: 112 | BZ179: 112
B180: 113 | U180: 113 | AN180: 113 | BG180: 113 | BZ180: 113
B181: 114 | U181: 114 | AN181: 114 | BG181: 114 | BZ181: 114
B182: 115 | U182: 115 | AN182: 115 | BG182: 115 | BZ182: 115
B183: 116 | U183: 116 | AN183: 116 | BG183: 116 | BZ183: 116
B184: 117 | U184: 117 | AN184: 117 | BG184: 117 | BZ184: 117
B185: 118 | U185: 118 | AN185: 118 | BG185: 118 | BZ185: 118
B186: 119 | U186: 119 | AN186: 119 | BG186: 119 | BZ186: 119
B187: 120 | U187: 120 | AN187: 120 | BG187: 120 | BZ187: 120
B188: 121 | U188: 121 | AN188: 121 | BG188: 121 | BZ188: 121
B189: 122 | U189: 122 | AN189: 122 | BG189: 122 | BZ189: 122
B190: 123 | U190: 123 | AN190: 123 | BG190: 123 | BZ190: 123
B191: 124 | U191: 124 | AN191: 124 | BG191: 124 | BZ191: 124
B192: 125 | U192: 125 | AN192: 125 | BG192: 125 | BZ192: 125
B193: 126 | U193: 126 | AN193: 126 | BG193: 126 | BZ193: 126
B194: 127 | U194: 127 | AN194: 127 | BG194: 127 | BZ194: 127
B195: 128 | U195: 128 | AN195: 128 | BG195: 128 | BZ195: 128
B196: 129 | U196: 129 | AN196: 129 | BG196: 129 | BZ196: 129
B197: 130 | U197: 130 | AN197: 130 | BG197: 130 | BZ197: 130
B198: 131 | U198: 131 | AN198: 131 | BG198: 131 | BZ198: 131
B199: 132 | U199: 132 | AN199: 132 | BG199: 132 | BZ199: 132
B200: 133 | U200: 133 | AN200: 133 | BG200: 133 | BZ200: 133
B201: 134 | U201: 134 | AN201: 134 | BG201: 134 | BZ201: 134
B202: 135 | U202: 135 | AN202: 135 | BG202: 135 | BZ202: 135
B203: 136 | U203: 136 | AN203: 136 | BG203: 136 | BZ203: 136
B204: 137 | U204: 137 | AN204: 137 | BG204: 137 | BZ204: 137
B205: 138 | U205: 138 | AN205: 138 | BG205: 138 | BZ205: 138
B206: 139 | U206: 139 | AN206: 139 | BG206: 139 | BZ206: 139
B207: 140 | U207: 140 | AN207: 140 | BG207: 140 | BZ207: 140
B208: 141 | U208: 141 | AN208: 141 | BG208: 141 | BZ208: 141
B209: 142 | U209: 142 | AN209: 142 | BG209: 142 | BZ209: 142
B210: 143 | U210: 143 | AN210: 143 | BG210: 143 | BZ210: 143
B211: 144 | U211: 144 | AN211: 144 | BG211: 144 | BZ211: 144
B212: 145 | U212: 145 | AN212: 145 | BG212: 145 | BZ212: 145
B213: 146 | U213: 146 | AN213: 146 | BG213: 146 | BZ213: 146
B214: 147 | U214: 147 | AN214: 147 | BG214: 147 | BZ214: 147
B215: 148 | U215: 148 | AN215: 148 | BG215: 148 | BZ215: 148
B216: 149 | U216: 149 | AN216: 149 | BG216: 149 | BZ216: 149
B217: 150 | U217: 150 | AN217: 150 | BG217: 150 | BZ217: 150
B218: 151 | U218: 151 | AN218: 151 | BG218: 151 | BZ218: 151
B219: 152 | U219: 152 | AN219: 152 | BG219: 152 | BZ219: 152
B220: 153 | U220: 153 | AN220: 153 | BG220: 153 | BZ220: 153
B221: 154 | U221: 154 | AN221: 154 | BG221: 154 | BZ221: 154
B222: 155 | U222: 155 | AN222: 155 | BG222: 155 | BZ222: 155
B223: 156 | U223: 156 | AN223: 156 | BG223: 156 | BZ223: 156
B224: 157 | U224: 157 | AN224: 157 | BG224: 157 | BZ224: 157
B225: 158 | U225: 158 | AN225: 158 | BG225: 158 | BZ225: 158
B226: 159 | U226: 159 | AN226: 159 | BG226: 159 | BZ226: 159
B227: 160 | U227: 160 | AN227: 160 | BG227: 160 | BZ227: 160
B228: 161 | U228: 161 | AN228: 161 | BG228: 161 | BZ228: 161
B229: 162 | U229: 162 | AN229: 162 | BG229: 162 | BZ229: 162
B230: 163 | U230: 163 | AN230: 163 | BG230: 163 | BZ230: 163
B231: 164 | U231: 164 | AN231: 164 | BG231: 164 | BZ231: 164
B232: 165 | U232: 165 | AN232: 165 | BG232: 165 | BZ232: 165
B233: 166 | U233: 166 | AN233: 166 | BG233: 166 | BZ233: 166
... 134 more rows

Sheet EV5.5.5 Alt. Matl - Shear
A1: ASES - EV5.5.5 SHEAR TEST RESULTS - FLOOR | T1: ASES - EV5.5.5 SHEAR TEST RESULTS - EXT WALLS | AM1: ASES - EV5.5.5 SHEAR TEST RESULTS - INT WALLS | BF1: ASES - EV5.5.5 SHEAR TEST RESULTS - COVER
A3: University Name | D3: =IF('Cover Sheet'!$D$15>0,'Cover Sheet'!$D$15,"") ->  | K3: Car No.(s) & Event(s) | O3: =IF('Cover Sheet'!O15>0,'Cover Sheet'!O15,"") ->  | T3: University Name | W3: =IF('Cover Sheet'!$D$15>0,'Cover Sheet'!$D$15,"") ->  | AD3: Car No.(s) & Event(s) | AH3: =IF('Cover Sheet'!O15>0,'Cover Sheet'!O15,"") ->  | AM3: University Name | AP3: =IF('Cover Sheet'!$D$15>0,'Cover Sheet'!$D$15,"") ->  | AW3: Car No.(s) & Event(s) | BA3: =IF('Cover Sheet'!O15>0,'Cover Sheet'!O15,"") ->  | BF3: University Name | BI3: =IF('Cover Sheet'!$D$15>0,'Cover Sheet'!$D$15,"") ->  | BP3: Car No.(s) & Event(s) | BT3: =IF('Cover Sheet'!O15>0,'Cover Sheet'!O15,"") -> 
B7: Paste images of test setup here | U7: Paste images of test setup here | AN7: Paste images of test setup here | BG7: Paste images of test setup here
B9: All test specimens must be presented at Tech. Inspection | U9: All test specimens must be presented at Tech. Inspection | AN9: All test specimens must be presented at Tech. Inspection | BG9: All test specimens must be presented at Tech. Inspection
B11: Please note the changed rules: T3.5.1 & T3.5.4 wrt. identifiable pictures! | U11: Please note the changed rules: T3.5.1 & T3.5.4 wrt. identifiable pictures! | AN11: Please note the changed rules: T3.5.1 & T3.5.4 wrt. identifiable pictures! | BG11: Please note the changed rules: T3.5.1 & T3.5.4 wrt. identifiable pictures!
A19: Figure 1: Test setup - Laminate Panel [Floor] | T19: Figure 1: Test setup - Laminate Panel [External Walls] | AM19: Figure 1: Test setup - Laminate Panel [Internal Walls] | BF19: Figure 1: Test setup - Laminate Panel [Cover]
B23: Paste load deflection curve here | U23: Paste load deflection curve here | AN23: Paste load deflection curve here | BG23: Paste load deflection curve here
B25: Logged data must be appended in the section below | U25: Logged data must be appended in the section below | AN25: Logged data must be appended in the section below | BG25: Logged data must be appended in the section below
B27: Please note the change rule T3.5.3 wrt. a.o. only thicker cores may be tested! | U27: Please note the change rule T3.5.3 wrt. a.o. only thicker cores may be tested! | AN27: Please note the change rule T3.5.3 wrt. a.o. only thicker cores may be tested! | BG27: Please note the change rule T3.5.3 wrt. a.o. only thicker cores may be tested!
A45: Figure 2: Load Deflection Curve | T45: Figure 2: Load Deflection Curve | AM45: Figure 2: Load Deflection Curve | BF45: Figure 2: Load Deflection Curve
A47: Enter values for force at first and second peak (see guidance notes) | T47: Enter values for force at first and second peak (see guidance notes) | AM47: Enter values for force at first and second peak (see guidance notes) | BF47: Enter values for force at first and second peak (see guidance notes)
A48: (N) | D48: 0 | F48: (Determines Shear Strength) | T48: (N) | W48: 0 | Y48: (Determines Shear Strength) | AM48: (N) | AP48: 0 | AR48: (Determines Shear Strength) | BF48: (N) | BI48: 0 | BK48: (Determines Shear Strength)
A49: Higher Peak (N) | D49: 0 | T49: Higher Peak (N) | W49: 0 | AM49: Higher Peak (N) | AP49: 0 | BF49: Higher Peak (N) | BI49: 0
A51: Enter details of skin thickness | T51: Enter details of skin thickness | AM51: Enter details of skin thickness | BF51: Enter details of skin thickness
B52: t (mm) | D52: ='EV5.5.5 Alt. Matl - 3pt Bending'!C56+'EV5.5.5 Alt. Matl - 3pt Bending'!C57 -> 2 | F52: =IF(_xlfn.ISFORMULA(D52),"","Please add explanation, for deviation from sum of skin thicknesses.") ->  | U52: t (mm) | W52: ='EV5.5.5 Alt. Matl - 3pt Bending'!V56+'EV5.5.5 Alt. Matl - 3pt Bending'!V57 -> 2 | Y52: =IF(_xlfn.ISFORMULA(W52),"","Please add explanation, for deviation from sum of skin thicknesses.") ->  | AN52: t (mm) | AP52: ='EV5.5.5 Alt. Matl - 3pt Bending'!AO56+'EV5.5.5 Alt. Matl - 3pt Bending'!AO57 -> 2 | AR52: =IF(_xlfn.ISFORMULA(AP52),"","Please add explanation, for deviation from sum of skin thicknesses.") ->  | BG52: t (mm) | BI52: ='EV5.5.5 Alt. Matl - 3pt Bending'!BH56+'EV5.5.5 Alt. Matl - 3pt Bending'!BH57 -> 2 | BK52: =IF(_xlfn.ISFORMULA(BI52),"","Please add explanation, for deviation from sum of skin thicknesses.") -> 
A54: σshear (Mpa) | D54: =IF(D52>0,D48/(PI()*25*D52),0) -> 0 | M54: Link to GUIDANCE NOTES | T54: σshear (Mpa) | W54: =IF(W52>0,W48/(PI()*25*W52),0) -> 0 | AM54: σshear (Mpa) | AP54: =IF(AP52>0,AP48/(PI()*25*AP52),0) -> 0 | BF54: σshear (Mpa) | BI54: =IF(BI52>0,BI48/(PI()*25*BI52),0) -> 0
A56: Paste in logged data from test below (no pictures of data): | T56: Paste in logged data from test below (no pictures of data): | AM56: Paste in logged data from test below (no pictures of data): | BF56: Paste in logged data from test below (no pictures of data):
A57: The given units are mandatory. Paste as values with correct decimal separator. | T57: The given units are mandatory. Paste as values with correct decimal separator. | AM57: The given units are mandatory. Paste as values with correct decimal separator. | BF57: The given units are mandatory. Paste as values with correct decimal separator.
A58: If there are more than 300 datapoints, you must resample the data at a lower frequency. | T58: If there are more than 300 datapoints, you must resample the data at a lower frequency. | AM58: If there are more than 300 datapoints, you must resample the data at a lower frequency. | BF58: If there are more than 300 datapoints, you must resample the data at a lower frequency.
C60: F (kN) | D60: s (mm) | F60: Picture of measured testpiece thickness | V60: F (kN) | W60: s (mm) | Y60: Picture of measured testpiece thickness | AO60: F (kN) | AP60: s (mm) | AR60: Picture of measured testpiece thickness | BH60: F (kN) | BI60: s (mm) | BK60: Picture of measured testpiece thickness
B61: 1 | U61: 1 | AN61: 1 | BG61: 1
B62: 2 | U62: 2 | AN62: 2 | BG62: 2
B63: 3 | F63: Paste image of measured testpieve between an accurate measuring device, | U63: 3 | Y63: Paste image of measured testpieve between an accurate measuring device, | AN63: 3 | AR63: Paste image of measured testpieve between an accurate measuring device, | BG63: 3 | BK63: Paste image of measured testpieve between an accurate measuring device,
B64: 4 | F64: with clearly redable measurment | U64: 4 | Y64: with clearly redable measurment | AN64: 4 | AR64: with clearly redable measurment | BG64: 4 | BK64: with clearly redable measurment
B65: 5 | U65: 5 | AN65: 5 | BG65: 5
B66: 6 | U66: 6 | AN66: 6 | BG66: 6
B67: 7 | U67: 7 | AN67: 7 | BG67: 7
B68: 8 | U68: 8 | AN68: 8 | BG68: 8
B69: 9 | U69: 9 | AN69: 9 | BG69: 9
B70: 10 | U70: 10 | AN70: 10 | BG70: 10
B71: 11 | U71: 11 | AN71: 11 | BG71: 11
B72: 12 | U72: 12 | AN72: 12 | BG72: 12
B73: 13 | U73: 13 | AN73: 13 | BG73: 13
B74: 14 | U74: 14 | AN74: 14 | BG74: 14
B75: 15 | U75: 15 | AN75: 15 | BG75: 15
B76: 16 | U76: 16 | AN76: 16 | BG76: 16
B77: 17 | U77: 17 | AN77: 17 | BG77: 17
B78: 18 | U78: 18 | AN78: 18 | BG78: 18
B79: 19 | U79: 19 | AN79: 19 | BG79: 19
B80: 20 | U80: 20 | AN80: 20 | BG80: 20
B81: 21 | U81: 21 | AN81: 21 | BG81: 21
B82: 22 | U82: 22 | AN82: 22 | BG82: 22
B83: 23 | U83: 23 | AN83: 23 | BG83: 23
B84: 24 | U84: 24 | AN84: 24 | BG84: 24
B85: 25 | U85: 25 | AN85: 25 | BG85: 25
B86: 26 | U86: 26 | AN86: 26 | BG86: 26
B87: 27 | U87: 27 | AN87: 27 | BG87: 27
B88: 28 | U88: 28 | AN88: 28 | BG88: 28
B89: 29 | U89: 29 | AN89: 29 | BG89: 29
B90: 30 | U90: 30 | AN90: 30 | BG90: 30
B91: 31 | U91: 31 | AN91: 31 | BG91: 31
B92: 32 | U92: 32 | AN92: 32 | BG92: 32
B93: 33 | U93: 33 | AN93: 33 | BG93: 33
B94: 34 | U94: 34 | AN94: 34 | BG94: 34
B95: 35 | U95: 35 | AN95: 35 | BG95: 35
B96: 36 | U96: 36 | AN96: 36 | BG96: 36
B97: 37 | U97: 37 | AN97: 37 | BG97: 37
B98: 38 | U98: 38 | AN98: 38 | BG98: 38
B99: 39 | U99: 39 | AN99: 39 | BG99: 39
B100: 40 | U100: 40 | AN100: 40 | BG100: 40
B101: 41 | U101: 41 | AN101: 41 | BG101: 41
B102: 42 | U102: 42 | AN102: 42 | BG102: 42
B103: 43 | U103: 43 | AN103: 43 | BG103: 43
B104: 44 | U104: 44 | AN104: 44 | BG104: 44
B105: 45 | U105: 45 | AN105: 45 | BG105: 45
B106: 46 | U106: 46 | AN106: 46 | BG106: 46
B107: 47 | U107: 47 | AN107: 47 | BG107: 47
B108: 48 | U108: 48 | AN108: 48 | BG108: 48
B109: 49 | U109: 49 | AN109: 49 | BG109: 49
B110: 50 | U110: 50 | AN110: 50 | BG110: 50
B111: 51 | U111: 51 | AN111: 51 | BG111: 51
B112: 52 | U112: 52 | AN112: 52 | BG112: 52
B113: 53 | U113: 53 | AN113: 53 | BG113: 53
B114: 54 | U114: 54 | AN114: 54 | BG114: 54
B115: 55 | U115: 55 | AN115: 55 | BG115: 55
B116: 56 | U116: 56 | AN116: 56 | BG116: 56
B117: 57 | U117: 57 | AN117: 57 | BG117: 57
B118: 58 | U118: 58 | AN118: 58 | BG118: 58
B119: 59 | U119: 59 | AN119: 59 | BG119: 59
B120: 60 | U120: 60 | AN120: 60 | BG120: 60
B121: 61 | U121: 61 | AN121: 61 | BG121: 61
B122: 62 | U122: 62 | AN122: 62 | BG122: 62
B123: 63 | U123: 63 | AN123: 63 | BG123: 63
B124: 64 | U124: 64 | AN124: 64 | BG124: 64
B125: 65 | U125: 65 | AN125: 65 | BG125: 65
B126: 66 | U126: 66 | AN126: 66 | BG126: 66
B127: 67 | U127: 67 | AN127: 67 | BG127: 67
B128: 68 | U128: 68 | AN128: 68 | BG128: 68
B129: 69 | U129: 69 | AN129: 69 | BG129: 69
B130: 70 | U130: 70 | AN130: 70 | BG130: 70
B131: 71 | U131: 71 | AN131: 71 | BG131: 71
B132: 72 | U132: 72 | AN132: 72 | BG132: 72
B133: 73 | U133: 73 | AN133: 73 | BG133: 73
B134: 74 | U134: 74 | AN134: 74 | BG134: 74
B135: 75 | U135: 75 | AN135: 75 | BG135: 75
B136: 76 | U136: 76 | AN136: 76 | BG136: 76
B137: 77 | U137: 77 | AN137: 77 | BG137: 77
B138: 78 | U138: 78 | AN138: 78 | BG138: 78
B139: 79 | U139: 79 | AN139: 79 | BG139: 79
B140: 80 | U140: 80 | AN140: 80 | BG140: 80
B141: 81 | U141: 81 | AN141: 81 | BG141: 81
B142: 82 | U142: 82 | AN142: 82 | BG142: 82
B143: 83 | U143: 83 | AN143: 83 | BG143: 83
B144: 84 | U144: 84 | AN144: 84 | BG144: 84
B145: 85 | U145: 85 | AN145: 85 | BG145: 85
B146: 86 | U146: 86 | AN146: 86 | BG146: 86
B147: 87 | U147: 87 | AN147: 87 | BG147: 87
B148: 88 | U148: 88 | AN148: 88 | BG148: 88
B149: 89 | U149: 89 | AN149: 89 | BG149: 89
B150: 90 | U150: 90 | AN150: 90 | BG150: 90
B151: 91 | U151: 91 | AN151: 91 | BG151: 91
B152: 92 | U152: 92 | AN152: 92 | BG152: 92
B153: 93 | U153: 93 | AN153: 93 | BG153: 93
B154: 94 | U154: 94 | AN154: 94 | BG154: 94
B155: 95 | U155: 95 | AN155: 95 | BG155: 95
B156: 96 | U156: 96 | AN156: 96 | BG156: 96
B157: 97 | U157: 97 | AN157: 97 | BG157: 97
B158: 98 | U158: 98 | AN158: 98 | BG158: 98
B159: 99 | U159: 99 | AN159: 99 | BG159: 99
B160: 100 | U160: 100 | AN160: 100 | BG160: 100
B161: 101 | U161: 101 | AN161: 101 | BG161: 101
B162: 102 | U162: 102 | AN162: 102 | BG162: 102
B163: 103 | U163: 103 | AN163: 103 | BG163: 103
B164: 104 | U164: 104 | AN164: 104 | BG164: 104
B165: 105 | U165: 105 | AN165: 105 | BG165: 105
B166: 106 | U166: 106 | AN166: 106 | BG166: 106
B167: 107 | U167: 107 | AN167: 107 | BG167: 107
B168: 108 | U168: 108 | AN168: 108 | BG168: 108
B169: 109 | U169: 109 | AN169: 109 | BG169: 109
B170: 110 | U170: 110 | AN170: 110 | BG170: 110
B171: 111 | U171: 111 | AN171: 111 | BG171: 111
B172: 112 | U172: 112 | AN172: 112 | BG172: 112
B173: 113 | U173: 113 | AN173: 113 | BG173: 113
B174: 114 | U174: 114 | AN174: 114 | BG174: 114
B175: 115 | U175: 115 | AN175: 115 | BG175: 115
B176: 116 | U176: 116 | AN176: 116 | BG176: 116
B177: 117 | U177: 117 | AN177: 117 | BG177: 117
B178: 118 | U178: 118 | AN178: 118 | BG178: 118
B179: 119 | U179: 119 | AN179: 119 | BG179: 119
B180: 120 | U180: 120 | AN180: 120 | BG180: 120
B181: 121 | U181: 121 | AN181: 121 | BG181: 121
B182: 122 | U182: 122 | AN182: 122 | BG182: 122
B183: 123 | U183: 123 | AN183: 123 | BG183: 123
B184: 124 | U184: 124 | AN184: 124 | BG184: 124
B185: 125 | U185: 125 | AN185: 125 | BG185: 125
B186: 126 | U186: 126 | AN186: 126 | BG186: 126
B187: 127 | U187: 127 | AN187: 127 | BG187: 127
B188: 128 | U188: 128 | AN188: 128 | BG188: 128
B189: 129 | U189: 129 | AN189: 129 | BG189: 129
B190: 130 | U190: 130 | AN190: 130 | BG190: 130
B191: 131 | U191: 131 | AN191: 131 | BG191: 131
B192: 132 | U192: 132 | AN192: 132 | BG192: 132
B193: 133 | U193: 133 | AN193: 133 | BG193: 133
B194: 134 | U194: 134 | AN194: 134 | BG194: 134
B195: 135 | U195: 135 | AN195: 135 | BG195: 135
B196: 136 | U196: 136 | AN196: 136 | BG196: 136
B197: 137 | U197: 137 | AN197: 137 | BG197: 137
B198: 138 | U198: 138 | AN198: 138 | BG198: 138
B199: 139 | U199: 139 | AN199: 139 | BG199: 139
B200: 140 | U200: 140 | AN200: 140 | BG200: 140
B201: 141 | U201: 141 | AN201: 141 | BG201: 141
B202: 142 | U202: 142 | AN202: 142 | BG202: 142
B203: 143 | U203: 143 | AN203: 143 | BG203: 143
B204: 144 | U204: 144 | AN204: 144 | BG204: 144
B205: 145 | U205: 145 | AN205: 145 | BG205: 145
B206: 146 | U206: 146 | AN206: 146 | BG206: 146
B207: 147 | U207: 147 | AN207: 147 | BG207: 147
B208: 148 | U208: 148 | AN208: 148 | BG208: 148
B209: 149 | U209: 149 | AN209: 149 | BG209: 149
B210: 150 | U210: 150 | AN210: 150 | BG210: 150
B211: 151 | U211: 151 | AN211: 151 | BG211: 151
B212: 152 | U212: 152 | AN212: 152 | BG212: 152
B213: 153 | U213: 153 | AN213: 153 | BG213: 153
B214: 154 | U214: 154 | AN214: 154 | BG214: 154
B215: 155 | U215: 155 | AN215: 155 | BG215: 155
B216: 156 | U216: 156 | AN216: 156 | BG216: 156
B217: 157 | U217: 157 | AN217: 157 | BG217: 157
B218: 158 | U218: 158 | AN218: 158 | BG218: 158
B219: 159 | U219: 159 | AN219: 159 | BG219: 159
B220: 160 | U220: 160 | AN220: 160 | BG220: 160
B221: 161 | U221: 161 | AN221: 161 | BG221: 161
B222: 162 | U222: 162 | AN222: 162 | BG222: 162
B223: 163 | U223: 163 | AN223: 163 | BG223: 163
B224: 164 | U224: 164 | AN224: 164 | BG224: 164
B225: 165 | U225: 165 | AN225: 165 | BG225: 165
B226: 166 | U226: 166 | AN226: 166 | BG226: 166
B227: 167 | U227: 167 | AN227: 167 | BG227: 167
B228: 168 | U228: 168 | AN228: 168 | BG228: 168
B229: 169 | U229: 169 | AN229: 169 | BG229: 169
B230: 170 | U230: 170 | AN230: 170 | BG230: 170
B231: 171 | U231: 171 | AN231: 171 | BG231: 171
B232: 172 | U232: 172 | AN232: 172 | BG232: 172
B233: 173 | U233: 173 | AN233: 173 | BG233: 173
B234: 174 | U234: 174 | AN234: 174 | BG234: 174
B235: 175 | U235: 175 | AN235: 175 | BG235: 175
B236: 176 | U236: 176 | AN236: 176 | BG236: 176
B237: 177 | U237: 177 | AN237: 177 | BG237: 177
B238: 178 | U238: 178 | AN238: 178 | BG238: 178
B239: 179 | U239: 179 | AN239: 179 | BG239: 179
B240: 180 | U240: 180 | AN240: 180 | BG240: 180
... 120 more rows

Sheet Datasheets Fiber
A1: =CONCATENATE(Read_Me!A1," FS ASES ",Read_Me!B1," - Datasheets Fiber") -> 2026 FS ASES V1.0 - Datasheets Fiber
S2: BACK to COVER SHEET
A3: University Name | D3: =IF('Cover Sheet'!D15:J15>0,'Cover Sheet'!D15:J15,"") ->  | J3: Car No.(s) & Event(s) | N3: =IF('Cover Sheet'!O15>0,'Cover Sheet'!O15,"") -> 
A5: Twill 22x | R5: Your Material 2 | AI5: Your Material 3 | AZ5: Your Material 4 | BQ5: Your Material 5 | CH5: Your Material 6 | CY5: Your Material 7 | DP5: Your Material 8
A7: Carbon Fiber | R7: Carbon Fiber | AI7: Carbon Fiber | AZ7: Carbon Fiber | BQ7: Carbon Fiber | CH7: Carbon Fiber | CY7: Carbon Fiber | DP7: Carbon Fiber
A9: mechanical properties shown? | E9: NO | H9: Fire rating shown? | L9: NO | R9: mechanical properties shown? | V9: NO | Y9: Fire rating shown? | AC9: NO | AI9: mechanical properties shown? | AM9: NO | AP9: Fire rating shown? | AT9: NO | AZ9: mechanical properties shown? | BD9: NO | BG9: Fire rating shown? | BK9: NO | BQ9: mechanical properties shown? | BU9: NO | BX9: Fire rating shown? | CB9: NO | CH9: mechanical properties shown? | CL9: NO | CO9: Fire rating shown? | CS9: NO | CY9: mechanical properties shown? | DC9: NO | DF9: Fire rating shown? | DJ9: NO | DP9: mechanical properties shown? | DT9: NO | DW9: Fire rating shown? | EA9: NO
A11: =IF(E9="N/A","Please explain why not applicable","" ) ->  | H11: =IF(L9="Performed own test","Please add pictures of test piece below and bring video to technical inspection","" ) ->  | R11: =IF(V9="N/A","Please explain why not applicable","" ) ->  | Y11: =IF(AC9="Performed own test","Please add pictures of test piece below and bring video to technical inspection","" ) ->  | AI11: =IF(AM9="N/A","Please explain why not applicable","" ) ->  | AP11: =IF(AT9="Performed own test","Please add pictures of test piece below and bring video to technical inspection","" ) ->  | AZ11: =IF(BD9="N/A","Please explain why not applicable","" ) ->  | BG11: =IF(BK9="Performed own test","Please add pictures of test piece below and bring video to technical inspection","" ) ->  | BQ11: =IF(BU9="N/A","Please explain why not applicable","" ) ->  | BX11: =IF(CB9="Performed own test","Please add pictures of test piece below and bring video to technical inspection","" ) ->  | CH11: =IF(CL9="N/A","Please explain why not applicable","" ) ->  | CO11: =IF(CS9="Performed own test","Please add pictures of test piece below and bring video to technical inspection","" ) ->  | CY11: =IF(DC9="N/A","Please explain why not applicable","" ) ->  | DF11: =IF(DJ9="Performed own test","Please add pictures of test piece below and bring video to technical inspection","" ) ->  | DP11: =IF(DT9="N/A","Please explain why not applicable","" ) ->  | DW11: =IF(EA9="Performed own test","Please add pictures of test piece below and bring video to technical inspection","" ) -> 
A13: Data Sheet | R13: Data Sheet | AI13: Data Sheet | AZ13: Data Sheet | BQ13: Data Sheet | CH13: Data Sheet | CY13: Data Sheet | DP13: Data Sheet
A17: Insert image of relevant datasheet pages (name of material must be visible on the pages). | R17: Insert image of relevant datasheet pages (name of material must be visible on the pages). | AI17: Insert image of relevant datasheet pages (name of material must be visible on the pages). | AZ17: Insert image of relevant datasheet pages (name of material must be visible on the pages). | BQ17: Insert image of relevant datasheet pages (name of material must be visible on the pages). | CH17: Insert image of relevant datasheet pages (name of material must be visible on the pages). | CY17: Insert image of relevant datasheet pages (name of material must be visible on the pages). | DP17: Insert image of relevant datasheet pages (name of material must be visible on the pages).
A18: Highlight the releveant areas for fire rating, mechanical properties. | R18: Highlight the releveant areas for fire rating, mechanical properties. | AI18: Highlight the releveant areas for fire rating, mechanical properties. | AZ18: Highlight the releveant areas for fire rating, mechanical properties. | BQ18: Highlight the releveant areas for fire rating, mechanical properties. | CH18: Highlight the releveant areas for fire rating, mechanical properties. | CY18: Highlight the releveant areas for fire rating, mechanical properties. | DP18: Highlight the releveant areas for fire rating, mechanical properties.
A19: In case of shared datasheets of more materials please highlight the used material. | R19: In case of shared datasheets of more materials please highlight the used material. | AI19: In case of shared datasheets of more materials please highlight the used material. | AZ19: In case of shared datasheets of more materials please highlight the used material. | BQ19: In case of shared datasheets of more materials please highlight the used material. | CH19: In case of shared datasheets of more materials please highlight the used material. | CY19: In case of shared datasheets of more materials please highlight the used material. | DP19: In case of shared datasheets of more materials please highlight the used material.

Sheet Datasheets Other Matl
A1: =CONCATENATE(Read_Me!A1," FS ASES ",Read_Me!B1," - Datasheets Other Matl'") -> 2026 FS ASES V1.0 - Datasheets Other Matl'
S2: BACK to COVER SHEET
A3: University Name | D3: =IF('Cover Sheet'!D15:J15>0,'Cover Sheet'!D15:J15,"") ->  | J3: Car No.(s) & Event(s) | N3: =IF('Cover Sheet'!O15>0,'Cover Sheet'!O15,"") -> 
A5: Your Material 1 | R5: Your Material 2 | AI5: Your Material 3 | AZ5: Your Material 4 | BQ5: Your Material 5 | CH5: Your Material 6 | CY5: Your Material 7 | DP5: Your Material 8
A7: Steel | R7: Aluminium | AI7: Aluminium | AZ7: Aluminium | BQ7: Aluminium | CH7: Aluminium | CY7: Aluminium | DP7: Aluminium
A9: Mechanical properties shown? | E9: NO | H9: Fire rating shown? | L9: NO | R9: Mechanical properties shown? | V9: NO | Y9: Fire rating shown? | AC9: NO | AI9: Mechanical properties shown? | AM9: NO | AP9: Fire rating shown? | AT9: NO | AZ9: Mechanical properties shown? | BD9: NO | BG9: Fire rating shown? | BK9: NO | BQ9: Mechanical properties shown? | BU9: NO | BX9: Fire rating shown? | CB9: NO | CH9: Mechanical properties shown? | CL9: NO | CO9: Fire rating shown? | CS9: NO | CY9: Mechanical properties shown? | DC9: NO | DF9: Fire rating shown? | DJ9: NO | DP9: Mechanical properties shown? | DT9: NO | DW9: Fire rating shown? | EA9: NO
A11: Mechanical properties at 60° shown? | E11: NO | H11: Shear strength at 60° [MPa] | R11: Mechanical properties at 60° shown? | V11: NO | Y11: Shear strength at 60° [MPa] | AI11: Mechanical properties at 60° shown? | AM11: NO | AP11: Shear strength at 60° [MPa] | AZ11: Mechanical properties at 60° shown? | BD11: NO | BG11: Shear strength at 60° [MPa] | BQ11: Mechanical properties at 60° shown? | BU11: NO | BX11: Shear strength at 60° [MPa] | CH11: Mechanical properties at 60° shown? | CL11: NO | CO11: Shear strength at 60° [MPa] | CY11: Mechanical properties at 60° shown? | DC11: NO | DF11: Shear strength at 60° [MPa] | DP11: Mechanical properties at 60° shown? | DT11: NO | DW11: Shear strength at 60° [MPa]
A13: =IF(OR(E9="N/A",E11="N/A"),"Please explain why not applicable","" ) ->  | H13: =IF(L9="Performed own test","Please add pictures of test piece below and bring video to technical inspection","" ) ->  | R13: =IF(OR(V9="N/A",V11="N/A"),"Please explain why not applicable","" ) ->  | Y13: =IF(AC9="Performed own test","Please add pictures of test piece below and bring video to technical inspection","" ) ->  | AI13: =IF(OR(AM9="N/A",AM11="N/A"),"Please explain why not applicable","" ) ->  | AP13: =IF(AT9="Performed own test","Please add pictures of test piece below and bring video to technical inspection","" ) ->  | AZ13: =IF(OR(BD9="N/A",BD11="N/A"),"Please explain why not applicable","" ) ->  | BG13: =IF(BK9="Performed own test","Please add pictures of test piece below and bring video to technical inspection","" ) ->  | BQ13: =IF(OR(BU9="N/A",BU11="N/A"),"Please explain why not applicable","" ) ->  | BX13: =IF(CB9="Performed own test","Please add pictures of test piece below and bring video to technical inspection","" ) ->  | CH13: =IF(OR(CL9="N/A",CL11="N/A"),"Please explain why not applicable","" ) ->  | CO13: =IF(CS9="Performed own test","Please add pictures of test piece below and bring video to technical inspection","" ) ->  | CY13: =IF(OR(DC9="N/A",DC11="N/A"),"Please explain why not applicable","" ) ->  | DF13: =IF(DJ9="Performed own test","Please add pictures of test piece below and bring video to technical inspection","" ) ->  | DP13: =IF(OR(DT9="N/A",DT11="N/A"),"Please explain why not applicable","" ) ->  | DW13: =IF(EA9="Performed own test","Please add pictures of test piece below and bring video to technical inspection","" ) -> 
A15: Data Sheet | R15: Data Sheet | AI15: Data Sheet | AZ15: Data Sheet | BQ15: Data Sheet | CH15: Data Sheet | CY15: Data Sheet | DP15: Data Sheet
A19: Insert image of relevant datasheet pages (name of material must be visible on the pages). | R19: Insert image of relevant datasheet pages (name of material must be visible on the pages). | AI19: Insert image of relevant datasheet pages (name of material must be visible on the pages). | AZ19: Insert image of relevant datasheet pages (name of material must be visible on the pages). | BQ19: Insert image of relevant datasheet pages (name of material must be visible on the pages). | CH19: Insert image of relevant datasheet pages (name of material must be visible on the pages). | CY19: Insert image of relevant datasheet pages (name of material must be visible on the pages). | DP19: Insert image of relevant datasheet pages (name of material must be visible on the pages).
A20: Highlight the releveant areas for fire rating, mechanical properties (@ 60 °C if applicable). | R20: Highlight the releveant areas for fire rating, mechanical properties (@ 60 °C if applicable). | AI20: Highlight the releveant areas for fire rating, mechanical properties (@ 60 °C if applicable). | AZ20: Highlight the releveant areas for fire rating, mechanical properties (@ 60 °C if applicable). | BQ20: Highlight the releveant areas for fire rating, mechanical properties (@ 60 °C if applicable). | CH20: Highlight the releveant areas for fire rating, mechanical properties (@ 60 °C if applicable). | CY20: Highlight the releveant areas for fire rating, mechanical properties (@ 60 °C if applicable). | DP20: Highlight the releveant areas for fire rating, mechanical properties (@ 60 °C if applicable).
A21: In case of shared datasheets of more materials please highlight the used material. | R21: In case of shared datasheets of more materials please highlight the used material. | AI21: In case of shared datasheets of more materials please highlight the used material. | AZ21: In case of shared datasheets of more materials please highlight the used material. | BQ21: In case of shared datasheets of more materials please highlight the used material. | CH21: In case of shared datasheets of more materials please highlight the used material. | CY21: In case of shared datasheets of more materials please highlight the used material. | DP21: In case of shared datasheets of more materials please highlight the used material.

Sheet Datasheets Glue
A1: =CONCATENATE(Read_Me!A1," FS ASES ",Read_Me!B1," - Datasheets Glue") -> 2026 FS ASES V1.0 - Datasheets Glue
S2: BACK to COVER SHEET
A3: University Name | D3: =IF('Cover Sheet'!D15:J15>0,'Cover Sheet'!D15:J15,"") ->  | J3: Car No.(s) & Event(s) | N3: =IF('Cover Sheet'!O15>0,'Cover Sheet'!O15,"") -> 
A5: Your Material 1 | R5: Your Material 2 | AI5: Your Material 3 | AZ5: Your Material 4 | BQ5: Your Material 5 | CH5: Your Material 6 | CY5: Your Material 7 | DP5: Your Material 8
A7: Mechanical properties shown? | E7: NO | H7: Fire rating shown? | L7: NO | R7: Mechanical properties shown? | V7: NO | Y7: Fire rating shown? | AC7: NO | AI7: Mechanical properties shown? | AM7: NO | AP7: Fire rating shown? | AT7: NO | AZ7: Mechanical properties shown? | BD7: NO | BG7: Fire rating shown? | BK7: NO | BQ7: Mechanical properties shown? | BU7: NO | BX7: Fire rating shown? | CB7: NO | CH7: Mechanical properties shown? | CL7: NO | CO7: Fire rating shown? | CS7: NO | CY7: Mechanical properties shown? | DC7: NO | DF7: Fire rating shown? | DJ7: NO | DP7: Mechanical properties shown? | DT7: NO | DW7: Fire rating shown? | EA7: NO
A9: Mechanical properties at 60° shown? | E9: NO | H9: Shear strength at 60° [MPa] | R9: Mechanical properties at 60° shown? | V9: NO | Y9: Shear strength at 60° [MPa] | AI9: Mechanical properties at 60° shown? | AM9: NO | AP9: Shear strength at 60° [MPa] | AZ9: Mechanical properties at 60° shown? | BD9: NO | BG9: Shear strength at 60° [MPa] | BQ9: Mechanical properties at 60° shown? | BU9: NO | BX9: Shear strength at 60° [MPa] | CH9: Mechanical properties at 60° shown? | CL9: NO | CO9: Shear strength at 60° [MPa] | CY9: Mechanical properties at 60° shown? | DC9: NO | DF9: Shear strength at 60° [MPa] | DP9: Mechanical properties at 60° shown? | DT9: NO | DW9: Shear strength at 60° [MPa]
A11: =IF(OR(E7="N/A",E9="N/A"),"Please explain why not applicable","" ) ->  | H11: =IF(L7="Performed own test","Please add pictures of test piece below and bring video to technical inspection","" ) ->  | R11: =IF(OR(V7="N/A",V9="N/A"),"Please explain why not applicable","" ) ->  | Y11: =IF(AC7="Performed own test","Please add pictures of test piece below and bring video to technical inspection","" ) ->  | AI11: =IF(OR(AM7="N/A",AM9="N/A"),"Please explain why not applicable","" ) ->  | AP11: =IF(AT7="Performed own test","Please add pictures of test piece below and bring video to technical inspection","" ) ->  | AZ11: =IF(OR(BD7="N/A",BD9="N/A"),"Please explain why not applicable","" ) ->  | BG11: =IF(BK7="Performed own test","Please add pictures of test piece below and bring video to technical inspection","" ) ->  | BQ11: =IF(OR(BU7="N/A",BU9="N/A"),"Please explain why not applicable","" ) ->  | BX11: =IF(CB7="Performed own test","Please add pictures of test piece below and bring video to technical inspection","" ) ->  | CH11: =IF(OR(CL7="N/A",CL9="N/A"),"Please explain why not applicable","" ) ->  | CO11: =IF(CS7="Performed own test","Please add pictures of test piece below and bring video to technical inspection","" ) ->  | CY11: =IF(OR(DC7="N/A",DC9="N/A"),"Please explain why not applicable","" ) ->  | DF11: =IF(DJ7="Performed own test","Please add pictures of test piece below and bring video to technical inspection","" ) ->  | DP11: =IF(OR(DT7="N/A",DT9="N/A"),"Please explain why not applicable","" ) ->  | DW11: =IF(EA7="Performed own test","Please add pictures of test piece below and bring video to technical inspection","" ) -> 
A13: Data Sheet | R13: Data Sheet | AI13: Data Sheet | AZ13: Data Sheet | BQ13: Data Sheet | CH13: Data Sheet | CY13: Data Sheet | DP13: Data Sheet
A17: Insert image of relevant datasheet pages (name of material must be visible on the pages). | R17: Insert image of relevant datasheet pages (name of material must be visible on the pages). | AI17: Insert image of relevant datasheet pages (name of material must be visible on the pages). | AZ17: Insert image of relevant datasheet pages (name of material must be visible on the pages). | BQ17: Insert image of relevant datasheet pages (name of material must be visible on the pages). | CH17: Insert image of relevant datasheet pages (name of material must be visible on the pages). | CY17: Insert image of relevant datasheet pages (name of material must be visible on the pages). | DP17: Insert image of relevant datasheet pages (name of material must be visible on the pages).
A18: Highlight the releveant areas for fire rating, mechanical properties (@ 60 °C if applicable). | R18: Highlight the releveant areas for fire rating, mechanical properties (@ 60 °C if applicable). | AI18: Highlight the releveant areas for fire rating, mechanical properties (@ 60 °C if applicable). | AZ18: Highlight the releveant areas for fire rating, mechanical properties (@ 60 °C if applicable). | BQ18: Highlight the releveant areas for fire rating, mechanical properties (@ 60 °C if applicable). | CH18: Highlight the releveant areas for fire rating, mechanical properties (@ 60 °C if applicable). | CY18: Highlight the releveant areas for fire rating, mechanical properties (@ 60 °C if applicable). | DP18: Highlight the releveant areas for fire rating, mechanical properties (@ 60 °C if applicable).
A19: In case of shared datasheets of more materials please highlight the used material. | R19: In case of shared datasheets of more materials please highlight the used material. | AI19: In case of shared datasheets of more materials please highlight the used material. | AZ19: In case of shared datasheets of more materials please highlight the used material. | BQ19: In case of shared datasheets of more materials please highlight the used material. | CH19: In case of shared datasheets of more materials please highlight the used material. | CY19: In case of shared datasheets of more materials please highlight the used material. | DP19: In case of shared datasheets of more materials please highlight the used material.

Sheet Materials Overview
A1: =CONCATENATE(Read_Me!A1," FS ASES ",Read_Me!B1," - MATERIALS OVERVIEW") -> 2026 FS ASES V1.0 - MATERIALS OVERVIEW
A3: University Name | D3: =IF('Cover Sheet'!D15:J15>0,'Cover Sheet'!D15:J15,"") ->  | I3: Car No.(s) & Event(s) | L3: =IF('Cover Sheet'!O15>0,'Cover Sheet'!O15,"") -> 
A5: Fiber Composite Materials
A7: Material name | D7: Material type | G7: Mechanical properties shown? | J7: Fire rating shown?
A8: =IF('Datasheets Fiber'!A5="Your Material 1","",'Datasheets Fiber'!A5) -> Twill 22x | D8: =IF(A8="","",'Datasheets Fiber'!A7) -> Carbon Fiber | G8: =IF(A8="","",'Datasheets Fiber'!E9) -> NO | J8: =IF(A8="","",'Datasheets Fiber'!L9) -> NO
A9: =IF('Datasheets Fiber'!R5="Your Material 2","",'Datasheets Fiber'!R5) ->  | D9: =IF(A9="","",'Datasheets Fiber'!R7) ->  | G9: =IF(A9="","",'Datasheets Fiber'!V9) ->  | J9: =IF(A9="","",'Datasheets Fiber'!AC9) -> 
A10: =IF('Datasheets Fiber'!AI5="Your Material 3","",'Datasheets Fiber'!AI5) ->  | D10: =IF(A10="","",'Datasheets Fiber'!AI7) ->  | G10: =IF(A10="","",'Datasheets Fiber'!AM9) ->  | J10: =IF(A10="","",'Datasheets Fiber'!AT9) -> 
A11: =IF('Datasheets Fiber'!AZ5="Your Material 4","",'Datasheets Fiber'!AZ5) ->  | D11: =IF(A11="","",'Datasheets Fiber'!AZ7) ->  | G11: =IF(A11="","",'Datasheets Fiber'!BD9) ->  | J11: =IF(A11="","",'Datasheets Fiber'!BK9) -> 
A12: =IF('Datasheets Fiber'!BQ5="Your Material 5","",'Datasheets Fiber'!BQ5) ->  | D12: =IF(A12="","",'Datasheets Fiber'!BQ7) ->  | G12: =IF(A12="","",'Datasheets Fiber'!BU9) ->  | J12: =IF(A12="","",'Datasheets Fiber'!CB9) -> 
A13: =IF('Datasheets Fiber'!CH5="Your Material 6","",'Datasheets Fiber'!CH5) ->  | D13: =IF(A13="","",'Datasheets Fiber'!CH7) ->  | G13: =IF(A13="","",'Datasheets Fiber'!CL9) ->  | J13: =IF(A13="","",'Datasheets Fiber'!CS9) -> 
A14: =IF('Datasheets Fiber'!CY5="Your Material 7","",'Datasheets Fiber'!CY5) ->  | D14: =IF(A14="","",'Datasheets Fiber'!CY7) ->  | G14: =IF(A14="","",'Datasheets Fiber'!DC9) ->  | J14: =IF(A14="","",'Datasheets Fiber'!DJ9) -> 
A15: =IF('Datasheets Fiber'!DP5="Your Material 8","",'Datasheets Fiber'!DP5) ->  | D15: =IF(A15="","",'Datasheets Fiber'!DP7) ->  | G15: =IF(A15="","",'Datasheets Fiber'!DT9) ->  | J15: =IF(A15="","",'Datasheets Fiber'!EA9) -> 
A18: Plastic, Metal & Others
A20: Material name | D20: Material type | G20: Mechanical properties shown? | J20: Fire rating shown? | M20: Shear strength at 60° [MPa]
A21: =IF('Datasheets Other Matl'!A5="Your Material 1","",'Datasheets Other Matl'!A5) ->  | D21: =IF(A21="","",'Datasheets Other Matl'!A7) ->  | G21: =IF(A21="","",'Datasheets Other Matl'!E9) ->  | J21: =IF(A21="","",'Datasheets Other Matl'!L9) ->  | M21: =IF(A21="","",'Datasheets Other Matl'!L11) -> 
A22: =IF('Datasheets Other Matl'!R5="Your Material 2","",'Datasheets Other Matl'!R5) ->  | D22: =IF(A22="","",'Datasheets Other Matl'!R7) ->  | G22: =IF(A22="","",'Datasheets Other Matl'!V9) ->  | J22: =IF(A22="","",'Datasheets Other Matl'!AC9) ->  | M22: =IF(A22="","",'Datasheets Other Matl'!AC11) -> 
A23: =IF('Datasheets Other Matl'!AI5="Your Material 3","",'Datasheets Other Matl'!AI5) ->  | D23: =IF(A23="","",'Datasheets Other Matl'!AI7) ->  | G23: =IF(A23="","",'Datasheets Other Matl'!AM9) ->  | J23: =IF(A23="","",'Datasheets Other Matl'!AT9) ->  | M23: =IF(A23="","",'Datasheets Other Matl'!AT11) -> 
A24: =IF('Datasheets Other Matl'!AZ5="Your Material 4","",'Datasheets Other Matl'!AZ5) ->  | D24: =IF(A24="","",'Datasheets Other Matl'!AZ7) ->  | G24: =IF(A24="","",'Datasheets Other Matl'!BD9) ->  | J24: =IF(A24="","",'Datasheets Other Matl'!BK9) ->  | M24: =IF(A24="","",'Datasheets Other Matl'!BK11) -> 
A25: =IF('Datasheets Other Matl'!BQ5="Your Material 5","",'Datasheets Other Matl'!BQ5) ->  | D25: =IF(A25="","",'Datasheets Other Matl'!BQ7) ->  | G25: =IF(A25="","",'Datasheets Other Matl'!BU9) ->  | J25: =IF(A25="","",'Datasheets Other Matl'!CB9) ->  | M25: =IF(A25="","",'Datasheets Other Matl'!CB11) -> 
A26: =IF('Datasheets Other Matl'!CH5="Your Material 6","",'Datasheets Other Matl'!CH5) ->  | D26: =IF(A26="","",'Datasheets Other Matl'!CH7) ->  | G26: =IF(A26="","",'Datasheets Other Matl'!CL9) ->  | J26: =IF(A26="","",'Datasheets Other Matl'!CS9) ->  | M26: =IF(A26="","",'Datasheets Other Matl'!CS11) -> 
A27: =IF('Datasheets Other Matl'!CY5="Your Material 7","",'Datasheets Other Matl'!CY5) ->  | D27: =IF(A27="","",'Datasheets Other Matl'!CY7) ->  | G27: =IF(A27="","",'Datasheets Other Matl'!DC9) ->  | J27: =IF(A27="","",'Datasheets Other Matl'!DJ9) ->  | M27: =IF(A27="","",'Datasheets Other Matl'!DJ11) -> 
A28: =IF('Datasheets Other Matl'!DP5="Your Material 8","",'Datasheets Other Matl'!DP5) ->  | D28: =IF(A28="","",'Datasheets Other Matl'!DP7) ->  | G28: =IF(A28="","",'Datasheets Other Matl'!DT9) ->  | J28: =IF(A28="","",'Datasheets Other Matl'!EA9) ->  | M28: =IF(A28="","",'Datasheets Other Matl'!EA11) -> 
L30: Link to guidance notes
A31: Glue
A33: Material name | D33: Mechanical properties shown | G33: Fulfills T1.2.1 | J33: Mechanical properties at 60° shown? | M33: Shear strength at 60° [MPa]
A34: =IF('Datasheets Glue'!A5="Your Material 1","",'Datasheets Glue'!A5) ->  | D34: =IF(A34="","",'Datasheets Glue'!E7) ->  | G34: =IF(A34="","",'Datasheets Glue'!L7) ->  | J34: =IF(A34="","",'Datasheets Glue'!E9) ->  | M34: =IF(A34="","",'Datasheets Glue'!L9) -> 
A35: =IF('Datasheets Glue'!R5="Your Material 2","",'Datasheets Glue'!R5) ->  | D35: =IF(A35="","",'Datasheets Glue'!V7) ->  | G35: =IF(A35="","",'Datasheets Glue'!AC7) ->  | J35: =IF(A35="","",'Datasheets Glue'!V9) ->  | M35: =IF(A35="","",'Datasheets Glue'!AC9) -> 
A36: =IF('Datasheets Glue'!AI5="Your Material 3","",'Datasheets Glue'!AI5) ->  | D36: =IF(A36="","",'Datasheets Glue'!AM7) ->  | G36: =IF(A36="","",'Datasheets Glue'!AT7) ->  | J36: =IF(A36="","",'Datasheets Glue'!AM9) ->  | M36: =IF(A36="","",'Datasheets Glue'!AT9) -> 
A37: =IF('Datasheets Glue'!AZ5="Your Material 4","",'Datasheets Glue'!AZ5) ->  | D37: =IF(A37="","",'Datasheets Glue'!BD7) ->  | G37: =IF(A37="","",'Datasheets Glue'!BK7) ->  | J37: =IF(A37="","",'Datasheets Glue'!BD9) ->  | M37: =IF(A37="","",'Datasheets Glue'!BK9) -> 
A38: =IF('Datasheets Glue'!BQ5="Your Material 5","",'Datasheets Glue'!BQ5) ->  | D38: =IF(A38="","",'Datasheets Glue'!BU7) ->  | G38: =IF(A38="","",'Datasheets Glue'!CB7) ->  | J38: =IF(A38="","",'Datasheets Glue'!BU9) ->  | M38: =IF(A38="","",'Datasheets Glue'!CB9) -> 
A39: =IF('Datasheets Glue'!CH5="Your Material 6","",'Datasheets Glue'!CH5) ->  | D39: =IF(A39="","",'Datasheets Glue'!CL7) ->  | G39: =IF(A39="","",'Datasheets Glue'!CS7) ->  | J39: =IF(A39="","",'Datasheets Glue'!CL9) ->  | M39: =IF(A39="","",'Datasheets Glue'!CS9) -> 
A40: =IF('Datasheets Glue'!CY5="Your Material 7","",'Datasheets Glue'!CY5) ->  | D40: =IF(A40="","",'Datasheets Glue'!DC7) ->  | G40: =IF(A40="","",'Datasheets Glue'!DJ7) ->  | J40: =IF(A40="","",'Datasheets Glue'!DC9) ->  | M40: =IF(A40="","",'Datasheets Glue'!DJ9) -> 
A41: =IF('Datasheets Glue'!DP5="Your Material 8","",'Datasheets Glue'!DP5) ->  | D41: =IF(A41="","",'Datasheets Glue'!DT7) ->  | G41: =IF(A41="","",'Datasheets Glue'!EA7) ->  | J41: =IF(A41="","",'Datasheets Glue'!DT9) ->  | M41: =IF(A41="","",'Datasheets Glue'!EA9) -> 

Sheet EV5.5.10-12 Cell Fixation
A1: =CONCATENATE(Read_Me!A1," FS ASES ",Read_Me!B1," - Cell fixation") -> 2026 FS ASES V1.0 - Cell fixation
A3: University Name | D3: =IF('Cover Sheet'!D15:J15>0,'Cover Sheet'!D15:J15,"") ->  | J3: Car No.(s) & Event(s) | N3: =IF('Cover Sheet'!O15>0,'Cover Sheet'!O15,"") -> 
B6: Insert pictures of your cell fastening methode showing the force path.
B8: Guidance notes: Cell fixation general
B9: Guidance notes: Pouch cell fixation
B10: Guidance notes: Friction based cell fixation | M10: BACK to COVER SHEET
A12: Cell type | M12: Pouch
A13: Fixation method | M13: Friction based
A14: If other, specify:
A15: Cell mass / g
A16: Cell height (h) / mm
A17: Cell width (w) / mm
A18: Cell surface nominal / mm² | M18: =M16*M17 -> 0
A19: Cell surface according EV 5.5.10 / mm² | M19: =M18*0.8 -> 0
A20: Max. number of cells between support (n)
A21: Shear Stress on most critical cell / MPa | M21: =M15/1000*40*9.81*M20/M19 -> 
A22: Compression force for friction based fixation (N)
A23: Compression stress / MPa | M23: =M22/M19 -> 
A24: Cell fixation according to EV5.5.10? | M24: =IF(M12<>"Pouch","N/A",IF(AND(M21<=0.05,M23<=1),"PASS",IF(M20<=6,"EXCEPTION","FAIL"))) -> 
A25: Friction coefficent by testing
A26: Friction force / N | M26: =M22*M25 -> 0
A27: Friction based fixation according to EV5.5.8? | M27: =IF(M13<>"Friction based","N/A",IF(M26>M15*M20/1000*40*9.81,"PASS","FAIL")) -> FAIL
A28: Compressible materials (e. g. PCBs) in cell tab fixation stack-up? | M28: No
A29: =IF(M28="Yes","-> Explain how EV4.5.12 is fulfilled.",IF(AND(M12="Pouch",M28="N/A"),"-> Above selection cannot be 'N/A' if cell type is 'Pouch'.","")) -> 
B31: Insert pictures of fixation concept. Please show at least the following points:
B32: 1. Pouch cells must be fixed using one or both of the large surface(s) only.
B34: 2. Each used surface must be fixed on at least 80 %.
B36: 3. Tabs of pouch cells must not carry mechanical loads and must not
B37: press into the pouch.
B39: Insert values above for the calculation of maximal forces of fixation concept.
B40: Insert necessary calculations (e.g. of the bonding or friction connection).
B42: In case of friction based concept, please add test procedure and results.
B43: Add at least following items for the test (also see Guidance Notes):
B44: - Pictures of test setup.
B45: - Test procedure description and link to execution video.

Sheet EV5.5.9 Segment
A1: =CONCATENATE(Read_Me!A1," FS ASES ",Read_Me!B1," - EV5.5.9 Segment") -> 2026 FS ASES V1.0 - EV5.5.9 Segment
S2: Any non-metallic materials used that are not continuous fiber reinforced laminates?
A3: University Name | D3: =IF('Cover Sheet'!D15:J15>0,'Cover Sheet'!D15:J15,"") ->  | J3: Car No.(s) & Event(s) | N3: =IF('Cover Sheet'!O15>0,'Cover Sheet'!O15,"") -> 
S4: =IF(AF2="Yes","--> Show mechanical properties at 60 °C in the materials section!","") -> 
B6: Please use this tab to prove that your cell mounting (within segment and attachment to | S6: Any bonded joints?
B7: TSAC) is compliant with EV 5.5.9. | S7: =IF(AF6="Yes","--> Show mechanical properties at 60 °C in the material overview and apply T3.2.8!","") -> 
B9: Vehicle coordinate system according to ISO 8855-2011. | M9: Link to guidance notes
M10: BACK to COVER SHEET
A12: Direction X | R12: Direction Y | AI12: Direction Z

Sheet EV5.5.9 TSAC
A1: =CONCATENATE(Read_Me!A1," FS ASES ",Read_Me!B1," - EV5.5.9 TSAC") -> 2026 FS ASES V1.0 - EV5.5.9 TSAC
S2: Any non-metallic materials used that are not continuous fiber reinforced laminates?
A3: University Name | D3: =IF('Cover Sheet'!D15:J15>0,'Cover Sheet'!D15:J15,"") ->  | J3: Car No.(s) & Event(s) | N3: =IF('Cover Sheet'!O15>0,'Cover Sheet'!O15,"") -> 
S4: =IF(AF2="Yes","--> Show mechanical properties at 60 °C in the materials section!","") -> 
B6: Please use this tab to prove that your TSAC is compliant with EV 5.5.9. | S6: Any bonded joints?
S7: =IF(AF6="Yes","--> Show mechanical properties at 60 °C in the materials section and apply T3.2.8!","") -> 
B8: Vehicle coordinate system according to ISO 8855-2011.
M9: Link to guidance notes
M10: BACK to COVER SHEET
A12: Direction X | R12: Direction Y | AI12: Direction Z

Sheet EV5.5.9 TSAC attachments
A1: =CONCATENATE(Read_Me!A1," FS ASES ",Read_Me!B1," - EV5.5.9 TSAC attachments") -> 2026 FS ASES V1.0 - EV5.5.9 TSAC attachments
S2: Any non-metallic materials used that are not continuous fiber reinforced laminates?
A3: University Name | D3: =IF('Cover Sheet'!D15:J15>0,'Cover Sheet'!D15:J15,"") ->  | J3: Car No.(s) & Event(s) | N3: =IF('Cover Sheet'!O15>0,'Cover Sheet'!O15,"") -> 
S4: =IF(AF2="Yes","--> Show mechanical properties at 60 °C in the materials section!","") -> 
B6: Please use this tab to prove that your TSAC attachments are compliant with EV 5.5.9. | S6: Any bonded joints?
B7: The chassis-side part of the attachment is not within the scope of this sheet. However, | S7: =IF(AF6="Yes","--> Show mechanical properties at 60 °C in the materials section and apply T3.2.8!","") -> 
B8: it shall be shown for context.
M9: Link to guidance notes
B10: Vehicle coordinate system according to ISO 8855-2011. | M10: BACK to COVER SHEET
A12: Direction X | R12: Direction Y | AI12: Direction Z

Sheet EV5.5.13 Fasteners
A1: =CONCATENATE(Read_Me!A1," FS ASES ",Read_Me!B1," - Fasteners") -> 2026 FS ASES V1.0 - Fasteners
A3: University Name | D3: =IF('Cover Sheet'!D15:J15>0,'Cover Sheet'!D15:J15,"") ->  | J3: Car No.(s) & Event(s) | N3: =IF('Cover Sheet'!O15>0,'Cover Sheet'!O15,"") -> 
B6: Please use this tab to prove that your fasteners are compliant with EV5.5.13.
B7: Show all fasteners, regardless if they have to follow (parts of) T10 or not.
B8: Summarize the fasteners in appropriate groups (e.g. same size/application).
M10: BACK to COVER SHEET
A11: Used for structural parts? | J11: =IF(H11<>"No","--> Must follow T10 completely in any case.",IF(H12<>"No","--> Must follow T10 with exception of T10.1.2.","--> Do not have to follow T10.")) -> --> Must follow T10 completely in any case. | R11: Used for structural parts? | AA11: =IF(Y11<>"No","--> Must follow T10 completely in any case.",IF(Y12<>"No","--> Must follow T10 with exception of T10.1.2.","--> Do not have to follow T10.")) -> --> Must follow T10 completely in any case. | AI11: Used for structural parts? | AR11: =IF(AP11<>"No","--> Must follow T10 completely in any case.",IF(AP12<>"No","--> Must follow T10 with exception of T10.1.2.","--> Do not have to follow T10.")) -> --> Must follow T10 completely in any case.
A12: Electrically conductive & inside TSAC? | R12: Electrically conductive & inside TSAC? | AI12: Electrically conductive & inside TSAC?
A13: Positive Locking mechanism | R13: Positive Locking mechanism | AI13: Positive Locking mechanism
A14: Show (CAD) pictures of the fasteners and complementary explanations if necessary. | R14: Show (CAD) pictures of the fasteners and complementary explanations if necessary. | AI14: Show (CAD) pictures of the fasteners and complementary explanations if necessary.
A35: Used for structural parts? | J35: =IF(H35<>"No","--> Must follow T10 completely in any case.",IF(H36<>"No","--> Must follow T10 with exception of T10.1.2.","--> Do not have to follow T10.")) -> --> Must follow T10 completely in any case. | R35: Used for structural parts? | AA35: =IF(Y35<>"No","--> Must follow T10 completely in any case.",IF(Y36<>"No","--> Must follow T10 with exception of T10.1.2.","--> Do not have to follow T10.")) -> --> Must follow T10 completely in any case. | AI35: Used for structural parts? | AR35: =IF(AP35<>"No","--> Must follow T10 completely in any case.",IF(AP36<>"No","--> Must follow T10 with exception of T10.1.2.","--> Do not have to follow T10.")) -> --> Must follow T10 completely in any case.
A36: Electrically conductive & inside TSAC? | R36: Electrically conductive & inside TSAC? | AI36: Electrically conductive & inside TSAC?
A37: Positive Locking mechanism | R37: Positive Locking mechanism | AI37: Positive Locking mechanism
A38: Show (CAD) pictures of the fasteners and complementary explanations if necessary. | R38: Show (CAD) pictures of the fasteners and complementary explanations if necessary. | AI38: Show (CAD) pictures of the fasteners and complementary explanations if necessary.
A59: Used for structural parts? | J59: =IF(H59<>"No","--> Must follow T10 completely in any case.",IF(H60<>"No","--> Must follow T10 with exception of T10.1.2.","--> Do not have to follow T10.")) -> --> Must follow T10 completely in any case. | R59: Used for structural parts? | AA59: =IF(Y59<>"No","--> Must follow T10 completely in any case.",IF(Y60<>"No","--> Must follow T10 with exception of T10.1.2.","--> Do not have to follow T10.")) -> --> Must follow T10 completely in any case. | AI59: Used for structural parts? | AR59: =IF(AP59<>"No","--> Must follow T10 completely in any case.",IF(AP60<>"No","--> Must follow T10 with exception of T10.1.2.","--> Do not have to follow T10.")) -> --> Must follow T10 completely in any case.
A60: Electrically conductive & inside TSAC? | R60: Electrically conductive & inside TSAC? | AI60: Electrically conductive & inside TSAC?
A61: Positive Locking mechanism | R61: Positive Locking mechanism | AI61: Positive Locking mechanism
A62: Show (CAD) pictures of the fasteners and complementary explanations if necessary. | R62: Show (CAD) pictures of the fasteners and complementary explanations if necessary. | AI62: Show (CAD) pictures of the fasteners and complementary explanations if necessary.
A83: Used for structural parts? | J83: =IF(H83<>"No","--> Must follow T10 completely in any case.",IF(H84<>"No","--> Must follow T10 with exception of T10.1.2.","--> Do not have to follow T10.")) -> --> Must follow T10 completely in any case. | R83: Used for structural parts? | AA83: =IF(Y83<>"No","--> Must follow T10 completely in any case.",IF(Y84<>"No","--> Must follow T10 with exception of T10.1.2.","--> Do not have to follow T10.")) -> --> Must follow T10 completely in any case. | AI83: Used for structural parts? | AR83: =IF(AP83<>"No","--> Must follow T10 completely in any case.",IF(AP84<>"No","--> Must follow T10 with exception of T10.1.2.","--> Do not have to follow T10.")) -> --> Must follow T10 completely in any case.
A84: Electrically conductive & inside TSAC? | R84: Electrically conductive & inside TSAC? | AI84: Electrically conductive & inside TSAC?
A85: Positive Locking mechanism | R85: Positive Locking mechanism | AI85: Positive Locking mechanism
A86: Show (CAD) pictures of the fasteners and complementary explanations if necessary. | R86: Show (CAD) pictures of the fasteners and complementary explanations if necessary. | AI86: Show (CAD) pictures of the fasteners and complementary explanations if necessary.

Sheet EV5.5.14-17 Openings&Separation
A1: =CONCATENATE(Read_Me!A1," FS ASES ",Read_Me!B1," - EV5.5.14-18 Openings&Separation") -> 2026 FS ASES V1.0 - EV5.5.14-18 Openings&Separation
E3: Mass kg | G3: Voltage V | I3: Energy MJ | K3: Separation shown?
B5: Segment 1 | K5: No
B6: Segment 2 | K6: No
B7: Segment 3 | K7: No
B8: Segment 4 | K8: No
B9: Segment 5 | K9: No
B10: Segment 6 | K10: No
B11: Segment 7 | K11: No
B12: Segment 8 | K12: No
B13: Segment 9 | K13: No
B14: Segment 10 | K14: No
B15: Segment 11 | K15: No
B16: Segment 12 | K16: No
B17: Segment 13 | K17: No
B18: Segment 14 | K18: No
B19: Segment 15 | K19: No
B20: Segment 16 | K20: No
O21: BACK to COVER SHEET
A22: Images must include dimensions/labels indicating the following: | R22: Compliance shown?
A24: Holes, both internal and external, in the TSAC, are only allowed for the wiring harness, ventilation, cooling, or fasteners. | R24: No
A26: External holes must be sealed according to EV4.5. | R26: No
A27: Total cutout area must be below 25 % of the area of the respective single wall. | R27: No
A28: External openings in the TSAC or mounted ducts must not point toward the driver. | R28: No
A29: External openings in the TSAC or mounted ducts must not point toward the handcart operator. | R29: No
A30: Any ducts outside of the TSAC and their mountings are fire retardant. | R30: No
A31: Is ventilation of explosive gases or a pressure relief valve required? If yes, then provide relevant description of the system. | R31: No
A33: AIRs and main fuse must be separated (T1.2.1) from the TS accumulator. | R33: No

Sheet Additional Info
A1: =CONCATENATE(Read_Me!A1," FS ASES ",Read_Me!B1," - Additional Info") -> 2026 FS ASES V1.0 - Additional Info
A3: University Name | D3: =IF('Cover Sheet'!D15:J15>0,'Cover Sheet'!D15:J15,"") ->  | K3: Car No.(s) & Event(s) | O3: =IF('Cover Sheet'!O15>0,'Cover Sheet'!O15,"") -> 
A5: Please use this sheet to include additional information required for your proof of equivalency that isn't covered by the standard forms e.g. material receipts. This tab may be copied if one page isn't sufficient.
O7: BACK to COVER SHEET

Sheet T3.5.9 Guidance Notes
A1: PERIMETER SHEAR TEST GUIDANCE NOTES
B3: When entering peak loads please ensure they are in accordance with the image below:
B5: Note: Make sure to include BOTH peaks. Also, in case of assymetrical laminates.
B7: Note: If the first peak is higher than the second then it can be used for the punch through
B8: strength requirement.
Q40: BACK

Sheet EV5.5.3 Guidance Notes
A1: ACCUMULATOR MATERIALS GUIDANCE NOTES
B3: Materials except metallic and continuous fiber-reinforced laminates
B4: Mechanical properties must be valid for ≥ 60 °C !
B6: In general 3 possibilities to show compliance:
B8: 1. Values from Datasheet
B9: - Must explicitly show mechanical properties at or above 60 °C.
B10: - Glass transition/vicat temperature alone is not sufficient.
B11: 2. Values from own tests
B12: - Test procedure shows mechanical properties ≥ 60 °C.
B13: - Must be well documented (report, pictures).
B14: 3. Scientific justification
B15: - Least favourable.
B16: - Generous knock-down factor applied to ambient temperature values.
B17: - Backed up by known behavior of the explicit material, must be explained scientifically.
R19: BACK

Sheet EV5.5.9 Guidance Notes
A1: TSAC, STACK AND CELL FIXATION GUIDANCE NOTES
B3: All mentioned parts and assembly mentioned in EV5.5.8, as well as the interface between
B4: must withstand the mentioned accelerations.
B5: This must be shown for every part/interface and every direction (x, y, z) in the respective
B6: ASES tab.
B7: For a quick review and pass, use the structure in the respective tab. This will help the
B8: reviewer to quickly understand your design and calculations.
B11: Please note:
B12: Analytical calculations always required, FEM can be supportive
B14: Showing some flashy and colourfull FEM images without legends, full model description or
B15: unreadable numbers, no information on meshing etc. result in a "FAIL" directly.
B16: Analytical calculations must at least be used to verify the FEM calculations.
O19: BACK: Cell fixation
O20: BACK: Segment
O21: BACK: TSAC

Sheet EV5.5.10-11 Guidance Notes
A1: CELL FIXATION GUIDANCE NOTES
B3: Pouch cells must be fixed using one or both of the large
B4: surface(s) only.
B5: Large surface means only the surface shown in the picture on the right.
B6: This may be done by friction or adhesive.
B7: The other surfaces of the cell must not carry any major load. However,
B8: touching other surfaces for packaging reasons is acceptable.
B10: Each used surface must be fixed on at least 80 %.
B11: 80 % is the absolute minimum surface to be used. If possible, use more
B12: to distribute the force more evenly and improve safety.
B14: Tabs of pouch cells must not carry mechanical loads and must not
B15: press into the pouch.
B16: Absolutely no mechanical load is permitted on the cell tabs. Busbars,
B17: PCB and/or other parts that are connected with the cell tabs must have
B18: a separate mounting from the cell tabs.
B20: To be able to fulfill EV5.5.11, the number of cells mechanically attached in series
B21: is limited.
B22: The number of cells in series can be determined based on the following explanation:
B24: If cells are supported on both sides, i.e. between
B25: supports, the number of cells mechanically in
B26: series is the number of cells between the supports
B27: divided by 2.
B28: (Left image)
B30: If cells are supported from one side only, the
B31: overall number of cells attached to that support
B32: shall be considered the cells mechanically in series.
B33: (Right image)
R39: BACK

Sheet EV5.5.12 Guidance Notes
A1: FRICTION-BASED CELL FIXATION GUIDANCE NOTES
B3: For friction based cell fixation, i.e. using a preload force to clamp the cells, testing is
B4: required to determine the coefficient of friction between the cells and the material
B5: they are attached to.
B7: A suggestion for a test setup is shown below.
B24: Cell or mockup
B25: For the test, you can use a an actual cell (respecting all necessary safety measures)
B26: or a representative cell mockup.
B27: If a mockup is used, it must have respresentative size (area of friction), surface condition,
B28: and stiffness as the actual cell. Pouch cell foil may be available at the manufacturer.
B30: Testing Pressure
B31: The coefficient of friction may be non-linear towards the application pressure. This
B32: must be respected in the testing and calculation.
B33: However, the actual pressure in the stack may be inappropriate/too high for the test.
B34: Conduct tests with different testing pressure values and then extrapolate in the
B35: calculation to your real application pressure.
B37: Testing procedure and documentation
B38: For each testing pressure, also conduct multiple tests to exclude random influences.
B39: Document every test result in the EV5.5.10-12 Cell Fixation tab in a table.
B40: Show pictures of and describe your test setup. Briefly summarize your test and
B41: argue, which coefficient of friction was chosen.
R42: BACK

Sheet EV5.5 TSAC Attachment Guidance
A1: ACCUMULATOR CONTAINER ATTACHMENT GUIDANCE NOTES
B27: Please note:
B28: Analytical calculations always preferred
A30: ! | B30: Showing some flashy and colourful FEM images without legends, full model description or lettertypes are unreadable, nothing given about the meshing etc. result in a "FAIL" directly. | S30: !
R34: BACK
